Workbook

Sheet Indice
A5: INDICE CUADROS GASTOS DEL PRESUPUESTO GENERAL DE LA NACIÓN - PGN
A7: CUADROS
A8: Cuadro No. 1. Ejecución del Presupuesto General de la Nación
A9: Cuadro No. 2. Ejecución del presupuesto recursos Nación
A10: Cuadro No. 3. Ejecución del presupuesto recursos Propios
A11: Cuadro No. 4. Ejecución Presupuesto General de la Nación por sectores
A12: Cuadro No. 5. Ejecución del presupuesto recursos Nación por sectores
A13: Cuadro No. 6. Ejecución del presupuesto recursos Propios por sectores
A14: Cuadro No. 7. Ejecución del Presupuesto General de la Nación detallado por sector, entidad y rubro presupuestal
A15: Cuadro No. 8. Rezago presupuestal del Presupuesto General de la Nación en 2024
A16: Cuadro No. 9. Reservas presupuestales del PGN de 2024 que se ejecutan en el 2025
A17: Cuadro No. 10. Cuentas por pagar del PGN de 2024 que se ejecutan en el 2025

Sheet CUA1
A1: Cuadro No. 1
A2: Ejecución del Presupuesto General de la Nación
A3: Acumulada a Septiembre 2025
A4: Miles de millones de pesos corrientes
B5: Concepto | C5: Apropiación Vigente | D5: Compromiso | E5: Obligación | F5: Pago | G5: Apropiación sin comprometer | H5: Porcentaje de ejecución
C6: Vigente | H6: Comp./Apro. | I6: Oblig./Apro. | J6: Pago/Apro. | K6: Oblig./Comp. | L6: Pago/Oblig.
C7: (1) | D7: (2) | E7: (3) | F7: (4) | G7: (5)=(1-2) | H7: (6)=(2/1) | I7: (7)=(3/1) | J7: (8)=(4/1) | K7: (9)=(3/2) | L7: (10)=(4/3)
A8: I. | B8: FUNCIONAMIENTO | C8: 329316.7745 | D8: 227126.3146 | E8: 208122.0638 | F8: 207354.1889 | G8: 102190.4599 | H8: 68.9689479 | I8: 63.19813624 | J8: 62.96496411 | K8: 91.63273931 | L8: 99.63104589
B9: Gastos de Personal | C9: 59956.42949 | D9: 38895.16303 | E9: 38315.14663 | F9: 38280.52356 | G9: 21061.26646 | H9: 64.87238043 | I9: 63.90498394 | J9: 63.84723688 | K9: 98.50876986 | L9: 99.90963607
B10: Adquisición de Bienes y Servicios | C10: 20336.54587 | D10: 16090.8407 | E10: 9815.166415 | F10: 9725.341746 | G10: 4245.705178 | H10: 79.1227812 | I10: 48.26368488 | J10: 47.82199399 | K10: 60.99846864 | L10: 99.08483803
B11: Transferencias | C11: 244498.1144 | D11: 169148.4703 | E11: 157953.6226 | F11: 157407.288 | G11: 75349.6441 | H11: 69.18191198 | I11: 64.60320687 | J11: 64.3797554 | K11: 93.38164416 | L11: 99.65411706
B12: Gastos de Comercialización y Producción | C12: 2141.166261 | D12: 1534.97489 | E12: 1126.332459 | F12: 1048.018046 | G12: 606.1913702 | H12: 71.68872958 | I12: 52.60368988 | J12: 48.94613116 | K12: 73.37790778 | L12: 93.04695406
B13: Adquisición de Activos Financieros | C13: 757.3321267 | D13: 614.2533695 | E13: 115.3780205 | F13: 107.4743766 | G13: 143.0787573 | H13: 81.10752836 | I13: 15.2347981 | J13: 14.19118149 | K13: 18.78345748 | L13: 93.14978377
B14: Disminución de Pasivos | C14: 353.9179426 | D14: 233.3379298 | E14: 230.5187726 | F14: 229.8977502 | G14: 120.5800128 | H14: 65.92995203 | I14: 65.13339531 | J14: 64.95792458 | K14: 98.79181359 | L14: 99.7305979
B15: Gastos por Tributos, Multas, Sanciones e Intereses de Mora | C15: 1273.268437 | D15: 609.2744511 | E15: 565.8988853 | F15: 555.6454261 | G15: 663.9939861 | H15: 47.85121765 | I15: 44.44458597 | J15: 43.63929944 | K15: 92.88078373 | L15: 98.18811108
A16: II. | B16: SERVICIO DE LA DEUDA | C16: 112605.1864 | D16: 71440.76165 | E16: 71219.77264 | F16: 71216.38942 | G16: 41164.42474 | H16: 63.44358012 | I16: 63.24732893 | J16: 63.24432444 | K16: 99.69066817 | L16: 99.99524962
B17: Servicio de la Deuda Pública Externa | C17: 54029.422 | D17: 28561.57618 | E17: 28372.18258 | F17: 28368.79937 | G17: 25467.84582 | H17: 52.86300523 | I17: 52.51246734 | J17: 52.50620555 | K17: 99.33689375 | L17: 99.9880756
B18: Principal | C18: 34772.59 | D18: 18725.87905 | E18: 18615.94561 | F18: 18613.28098 | G18: 16046.71095 | H18: 53.85241377 | I18: 53.53626408 | J18: 53.52860107 | K18: 99.41293311 | L18: 99.98568632
B19: Intereses | C19: 18832.45816 | D19: 9631.531039 | E19: 9591.953144 | F19: 9591.234559 | G19: 9200.927117 | H19: 51.14324938 | I19: 50.9330915 | J19: 50.92927583 | K19: 99.58907992 | L19: 99.99250846
B20: Comisiones y Otros Gastos | C20: 424.3738446 | D20: 204.1660957 | E20: 164.2838288 | F20: 164.2838288 | G20: 220.2077489 | H20: 48.10996207 | I20: 38.71205328 | J20: 38.71205328 | K20: 80.46577386 | L20: 100
B21: Servicio de la Deuda Pública Interna | C21: 58575.76439 | D21: 42879.18547 | E21: 42847.59005 | F21: 42847.59005 | G21: 15696.57892 | H21: 73.2029465 | I21: 73.14900709 | J21: 73.14900709 | K21: 99.92631525 | L21: 100
B22: Principal | C22: 15993.66678 | D22: 6636.941541 | E22: 6634.638989 | F22: 6634.638989 | G22: 9356.725235 | H22: 41.49731036 | I22: 41.48291372 | J22: 41.48291372 | K22: 99.96530703 | L22: 100
B23: Intereses | C23: 40380.19015 | D23: 34792.06974 | E23: 34771.88958 | F23: 34771.88958 | G23: 5588.120414 | H23: 86.16123304 | I23: 86.11125764 | J23: 86.11125764 | K23: 99.94199782 | L23: 100
B24: Comisiones y Otros Gastos | C24: 294.8098498 | D24: 63.35893166 | E24: 54.24622466 | F24: 54.24622466 | G24: 231.4509181 | H24: 21.49145685 | I24: 18.40041121 | J24: 18.40041121 | K24: 85.6173285 | L24: 100
B25: Fondo de contingencias | C25: 1907.097618 | D25: 1386.815263 | E25: 1386.815263 | F25: 1386.815263 | G25: 520.2823552 | H25: 72.71863012 | I25: 72.71863012 | J25: 72.71863012 | K25: 100 | L25: 100
A26: III. | B26: INVERSIÓN | C26: 83968.66681 | D26: 59421.08065 | E26: 34471.64121 | F26: 34240.28512 | G26: 24547.58616 | H26: 70.76577836 | I26: 41.05298145 | J26: 40.77745476 | K26: 58.01247779 | L26: 99.32885094
A27: IV. | B27: TOTAL (I + II + III) | C27: 525890.6277 | D27: 357988.1569 | E27: 313813.4776 | F27: 312810.8634 | G27: 167902.4708 | H27: 68.07273948 | I27: 59.67276485 | J27: 59.48211414 | K27: 87.6602959 | L27: 99.68050632
A28: V. | B28: TOTAL SIN DEUDA (I + III) | C28: 413285.4413 | D28: 286547.3953 | E28: 242593.705 | F28: 241594.474 | G28: 126738.046 | H28: 69.33401631 | I28: 58.69882671 | J28: 58.45704926 | K28: 84.66093533 | L28: 99.58810514
A29: Fuente: Dirección General del Presupuesto Público Nacional- Subdirección de Análisis y Consolidación Presupuestal
C32: =+C27-'CUA2'!C27-'CUA3'!C25 -> -2.910383046e-11 | D32: =+D27-'CUA2'!D27-'CUA3'!D25 -> 0 | E32: =+E27-'CUA2'!E27-'CUA3'!E25 -> -6.548361853e-11 | F32: =+F27-'CUA2'!F27-'CUA3'!F25 -> 2.182787284e-11 | G32: =+G27-'CUA2'!G27-'CUA3'!G25 -> 5.456968211e-11

Sheet CUA2
A1: Cuadro No. 2
A2: Ejecución del presupuesto recursos Nación
A3: =+'CUA1'!A3:L3 -> Acumulada a Septiembre 2025
A4: Miles de millones de pesos corrientes
B5: Concepto | C5: Apropiación Vigente | D5: Compromiso | E5: Obligación | F5: Pago | G5: Apropiación sin comprometer | H5: Porcentaje de ejecución
C6: Vigente | H6: Comp./Apro. | I6: Oblig./Apro. | J6: Pago/Apro. | K6: Oblig./Comp. | L6: Pago/Oblig.
C7: (1) | D7: (2) | E7: (3) | F7: (4) | G7: (5)=(1-2) | H7: (6)=(2/1) | I7: (7)=(3/1) | J7: (8)=(4/1) | K7: (9)=(3/2) | L7: (10)=(4/3)
A8: I. | B8: FUNCIONAMIENTO | C8: 316077.2011 | D8: 217374.5256 | E8: 199364.249 | F8: 198818.7075 | G8: 98702.67549 | H8: 68.77260519 | I8: 63.07454264 | J8: 62.90194511 | K8: 91.71463328 | L8: 99.72635943
B9: Gastos de Personal | C9: 56313.98707 | D9: 36584.45272 | E9: 36038.58476 | F9: 36013.77372 | G9: 19729.53436 | H9: 64.96512611 | I9: 63.99579684 | J9: 63.95173844 | K9: 98.50792367 | L9: 99.93115423
B10: Adquisición de Bienes y Servicios | C10: 18864.96165 | D10: 14875.82824 | E10: 9022.506272 | F10: 8944.902331 | G10: 3989.133411 | H10: 78.85427236 | I10: 47.8267936 | J10: 47.41542811 | K10: 60.65212723 | L10: 99.13988488
B11: Transferencias | C11: 238673.2188 | D11: 164551.7228 | E11: 153515.291 | F11: 153078.5599 | G11: 74121.49607 | H11: 68.94435981 | I11: 64.3202835 | J11: 64.13730062 | K11: 93.29303176 | L11: 99.71551296
B12: Gastos de Comercialización y Producción | C12: 116.915237 | D12: 92.18546445 | E12: 38.43659572 | F12: 37.79260244 | G12: 24.72977255 | H12: 78.84811836 | I12: 32.87560861 | J12: 32.32478794 | K12: 41.69485499 | L12: 98.3245309
B13: Adquisición de Activos Financieros | C13: 629.771 | D13: 510.0407959 | E13: 16.043935 | F13: 15.42735 | G13: 119.7302041 | H13: 80.9882951 | I13: 2.547582375 | J13: 2.449676152 | K13: 3.145617984 | L13: 96.15689667
B14: Disminución de Pasivos | C14: 340.2849426 | D14: 226.6590543 | E14: 223.9197266 | F14: 223.7897446 | G14: 113.6258883 | H14: 66.60860529 | I14: 65.80359533 | J14: 65.76539733 | K14: 98.7914325 | L14: 99.9419515
B15: Gastos por Tributos, Multas, Sanciones e Intereses de Mora | C15: 1138.06235 | D15: 533.6365555 | E15: 509.4667175 | F15: 504.4619094 | G15: 604.4257943 | H15: 46.88992265 | I15: 44.76615166 | J15: 44.32638594 | K15: 95.47073047 | L15: 99.01763785
A16: II. | B16: SERVICIO DE LA DEUDA | C16: 112605.1864 | D16: 71440.76165 | E16: 71219.77264 | F16: 71216.38942 | G16: 41164.42474 | H16: 63.44358012 | I16: 63.24732893 | J16: 63.24432444 | K16: 99.69066817 | L16: 99.99524962
B17: Servicio de la Deuda Pública Externa | C17: 54029.422 | D17: 28561.57618 | E17: 28372.18258 | F17: 28368.79937 | G17: 25467.84582 | H17: 52.86300523 | I17: 52.51246734 | J17: 52.50620555 | K17: 99.33689375 | L17: 99.9880756
B18: Principal | C18: 34772.59 | D18: 18725.87905 | E18: 18615.94561 | F18: 18613.28098 | G18: 16046.71095 | H18: 53.85241377 | I18: 53.53626408 | J18: 53.52860107 | K18: 99.41293311 | L18: 99.98568632
B19: Intereses | C19: 18832.45816 | D19: 9631.531039 | E19: 9591.953144 | F19: 9591.234559 | G19: 9200.927117 | H19: 51.14324938 | I19: 50.9330915 | J19: 50.92927583 | K19: 99.58907992 | L19: 99.99250846
B20: Comisiones y Otros Gastos | C20: 424.3738446 | D20: 204.1660957 | E20: 164.2838288 | F20: 164.2838288 | G20: 220.2077489 | H20: 48.10996207 | I20: 38.71205328 | J20: 38.71205328 | K20: 80.46577386 | L20: 100
B21: Servicio de la Deuda Pública Interna | C21: 58575.76439 | D21: 42879.18547 | E21: 42847.59005 | F21: 42847.59005 | G21: 15696.57892 | H21: 73.2029465 | I21: 73.14900709 | J21: 73.14900709 | K21: 99.92631525 | L21: 100
B22: Principal | C22: 15993.66678 | D22: 6636.941541 | E22: 6634.638989 | F22: 6634.638989 | G22: 9356.725235 | H22: 41.49731036 | I22: 41.48291372 | J22: 41.48291372 | K22: 99.96530703 | L22: 100
B23: Intereses | C23: 40380.19015 | D23: 34792.06974 | E23: 34771.88958 | F23: 34771.88958 | G23: 5588.120414 | H23: 86.16123304 | I23: 86.11125764 | J23: 86.11125764 | K23: 99.94199782 | L23: 100
B24: Comisiones y Otros Gastos | C24: 294.8098498 | D24: 63.35893166 | E24: 54.24622466 | F24: 54.24622466 | G24: 231.4509181 | H24: 21.49145685 | I24: 18.40041121 | J24: 18.40041121 | K24: 85.6173285 | L24: 100
B25: Fondo de contingencias | C25: 1907.097618 | D25: 1386.815263 | E25: 1386.815263 | F25: 1386.815263 | G25: 520.2823552 | H25: 72.71863012 | I25: 72.71863012 | J25: 72.71863012 | K25: 100 | L25: 100
A26: III. | B26: INVERSIÓN | C26: 69838.74838 | D26: 49008.5158 | E26: 28937.09341 | F26: 28808.63218 | G26: 20830.23259 | H26: 70.17381745 | I26: 41.43415236 | J26: 41.25021259 | K26: 59.04503113 | L26: 99.55606727
A27: IV. | B27: TOTAL (I + II + III) | C27: 498521.1359 | D27: 337823.803 | E27: 299521.115 | F27: 298843.7291 | G27: 160697.3328 | H27: 67.76519163 | I27: 60.08192903 | J27: 59.94604995 | K27: 88.66193333 | L27: 99.77384369
A28: V. | B28: TOTAL SIN DEUDA (I + III) | C28: 385915.9495 | D28: 266383.0414 | E28: 228301.3424 | F28: 227627.3397 | G28: 119532.9081 | H28: 69.0261809 | I28: 59.15830706 | J28: 58.98365694 | K28: 85.70415789 | L28: 99.70477498
A29: Fuente: Dirección General del Presupuesto Público Nacional- Subdirección de Análisis y Consolidación Presupuestal
C31: =+C27-'CUA5'!B8 -> 0 | D31: =+D28+'CUA3'!D26-'CUA1'!D28 -> 0 | E31: =+E28+'CUA3'!E26-'CUA1'!E28 -> 0 | F31: =+F28+'CUA3'!F26-'CUA1'!F28 -> 0 | G31: =+G28+'CUA3'!G26-'CUA1'!G28 -> 0
C37: =+C8/'CUA1'!C8 -> 0.9597968448
C38: =+C16/'CUA1'!C16 -> 1

Sheet CUA3
A1: Cuadro No. 3
A2: Ejecución del presupuesto recursos Propios
A3: =+'CUA1'!A3:L3 -> Acumulada a Septiembre 2025
A4: Miles de millones de pesos corrientes
B5: Concepto | C5: Apropiación Vigente | D5: Compromiso | E5: Obligación | F5: Pago | G5: Apropiación sin comprometer | H5: Porcentaje de ejecución
C6: Vigente | H6: Comp./Apro. | I6: Oblig./Apro. | J6: Pago/Apro. | K6: Oblig./Comp. | L6: Pago/Oblig.
C7: (1) | D7: (2) | E7: (3) | F7: (4) | G7: (5)=(1-2) | H7: (6)=(2/1) | I7: (7)=(3/1) | J7: (8)=(4/1) | K7: (9)=(3/2) | L7: (10)=(4/3)
A8: I. | B8: FUNCIONAMIENTO | C8: 13239.57341 | D8: 9751.789039 | E8: 8757.814812 | F8: 8535.481361 | G8: 3487.78437 | H8: 73.65636896 | I8: 66.14876885 | J8: 64.46945908 | K8: 89.80726282 | L8: 97.46131363
B9: Gastos de Personal | C9: 3642.442415 | D9: 2310.710309 | E9: 2276.561874 | F9: 2266.749843 | G9: 1331.732106 | H9: 63.43848565 | I9: 62.50097091 | J9: 62.23159038 | K9: 98.5221672 | L9: 99.56899786
B10: Adquisición de Bienes y Servicios | C10: 1471.584221 | D10: 1215.012454 | E10: 792.6601434 | F10: 780.4394146 | G10: 256.5717665 | H10: 82.56492813 | I10: 53.864409 | J10: 53.03396187 | K10: 65.23884925 | L10: 98.45826375
B11: Transferencias | C11: 5824.895536 | D11: 4596.747506 | E11: 4438.331632 | F11: 4328.72811 | G11: 1228.148031 | H11: 78.91553552 | I11: 76.19590092 | J11: 74.31426166 | K11: 96.55373992 | L11: 97.5305243
B12: Gastos de Comercialización y Producción | C12: 2024.251024 | D12: 1442.789426 | E12: 1087.895864 | F12: 1010.225444 | G12: 581.4615977 | H12: 71.27522274 | I12: 53.74313023 | J12: 49.90613476 | K12: 75.40226205 | L12: 92.86049128
B13: Adquisición de Activos Financieros | C13: 127.5611267 | D13: 104.2125736 | E13: 99.33408549 | F13: 92.0470266 | G13: 23.34855319 | H13: 81.69618458 | I13: 77.87175296 | J13: 72.15915142 | K13: 95.31871453 | L13: 92.66409023
B14: Disminución de Pasivos | C14: 13.633 | D14: 6.678875503 | E14: 6.599046013 | F14: 6.108005644 | G14: 6.954124497 | H14: 48.99050468 | I14: 48.40494398 | J14: 44.80309282 | K14: 98.80474655 | L14: 92.55891885
B15: Gastos por Tributos, Multas, Sanciones e Intereses de Mora | C15: 135.2060875 | D15: 75.63789567 | E15: 56.43216775 | F15: 51.1835167 | G15: 59.56819183 | H15: 55.94267024 | I15: 41.73788976 | J15: 37.8559262 | K15: 74.60832596 | L15: 90.69918585
A16: II. | B16: SERVICIO DE LA DEUDA | C16: 0 | D16: 0 | E16: 0 | F16: 0 | G16: 0 | H16: 0 | I16: 0 | J16: 0 | K16: 0 | L16: 0
B17: Servicio de la Deuda Pública Externa | C17: 0 | D17: 0 | E17: 0 | F17: 0 | G17: 0 | H17: 0 | I17: 0 | J17: 0 | K17: 0 | L17: 0
B18: Principal | C18: 0 | D18: 0 | E18: 0 | F18: 0 | G18: 0 | H18: 0 | I18: 0 | J18: 0 | K18: 0 | L18: 0
B19: Intereses | C19: 0 | D19: 0 | E19: 0 | F19: 0 | G19: 0 | H19: 0 | I19: 0 | J19: 0 | K19: 0 | L19: 0
B20: Comisiones y Otros Gastos | C20: 0 | D20: 0 | E20: 0 | F20: 0 | G20: 0 | H20: 0 | I20: 0 | J20: 0 | K20: 0 | L20: 0
B21: Servicio de la Deuda Pública Interna | C21: 0 | D21: 0 | E21: 0 | F21: 0 | G21: 0 | H21: 0 | I21: 0 | J21: 0 | K21: 0 | L21: 0
B22: Principal | H22: 0 | I22: 0 | J22: 0 | K22: 0 | L22: 0
B23: Fondo de Contingencias | C23: 0 | D23: 0 | E23: 0 | F23: 0 | G23: 0 | H23: 0 | I23: 0 | J23: 0 | K23: 0 | L23: 0
A24: III. | B24: INVERSIÓN | C24: 14129.91843 | D24: 10412.56485 | E24: 5534.547806 | F24: 5431.652941 | G24: 3717.353577 | H24: 73.69161332 | I24: 39.1690004 | J24: 38.44079475 | K24: 53.15258905 | L24: 98.14086231
A25: IV. | B25: TOTAL (I + II + III) | C25: 27369.49184 | D25: 20164.35389 | E25: 14292.36262 | F25: 13967.1343 | G25: 7205.137948 | H25: 73.6745644 | I25: 52.22005108 | J25: 51.03176334 | K25: 70.87934825 | L25: 97.72446079
A26: V. | B26: TOTAL SIN DEUDA (I + III) | C26: 27369.49184 | D26: 20164.35389 | E26: 14292.36262 | F26: 13967.1343 | G26: 7205.137948 | H26: 73.6745644 | I26: 52.22005108 | J26: 51.03176334 | K26: 70.87934825 | L26: 97.72446079
A27: Fuente: Dirección General del Presupuesto Público Nacional- Subdirección de Análisis y Consolidación Presupuestal
C30: =+C25-'CUA6'!B8 -> 0 | D30: =+D25-'CUA6'!C8 -> 0 | E30: =+E25-'CUA6'!D8 -> 0 | F30: =+F25-'CUA6'!E8 -> 0
C34: =+C8/'CUA1'!C8 -> 0.04020315524
C35: =+C24/'CUA1'!C26 -> 0.168276084

Sheet CUA4
A1: Cuadro No. 4
A2: Ejecución Presupuesto General de la Nación por sectores
A3: =+'CUA1'!A3:L3 -> Acumulada a Septiembre 2025
A4: Miles de millones de pesos
A5: Sector | B5: Apropiación Vigente | C5: Compromiso | D5: Obligación | E5: Pago | F5: Apropiación sin comprometer | G5: Porcentaje de ejecución
B6: Vigente | G6: Comp./Apro. | H6: Oblig./Apro. | I6: Pago/Apro. | J6: Oblig./Comp. | K6: Pago/Oblig.
B7: (1) | C7: (2) | D7: (3) | E7: (4) | F7: (5)=(1-2) | G7: (6)=(2/1) | H7: (7)=(3/1) | I7: (8)=(4/1) | J7: (9)=(3/2) | K7: (10)=(4/3)
A8: TOTAL PGN | B8: 525890.6277 | C8: 357988.1569 | D8: 313813.4776 | E8: 312810.8634 | F8: 167902.4708 | G8: 68.07273948 | H8: 59.67276485 | I8: 59.48211414 | J8: 87.6602959 | K8: 99.68050632
A9: SERVICIO DE LA DEUDA PÚBLICA NACIONAL | B9: 109828.422 | C9: 69524.33113 | D9: 69303.34211 | E9: 69299.9589 | F9: 40304.09087 | G9: 63.3026769 | H9: 63.10146395 | I9: 63.09838349 | J9: 99.68214147 | K9: 99.99511826
A10: EDUCACIÓN | B10: 81637.98309 | C10: 63506.41421 | D10: 57721.37576 | E10: 57310.19022 | F10: 18131.56888 | G10: 77.79027826 | H10: 70.70406884 | I10: 70.20039943 | J10: 90.89062338 | K10: 99.28763731
A11: SALUD Y PROTECCIÓN SOCIAL | B11: 67161.78908 | C11: 50764.86809 | D11: 47879.97153 | E11: 47876.72304 | F11: 16396.92099 | G11: 75.58593775 | H11: 71.29049448 | I11: 71.28565767 | J11: 94.31713967 | K11: 99.99321535
A12: DEFENSA Y POLICÍA | B12: 60160.3569 | C12: 43989.5093 | D12: 38797.33678 | E12: 38624.68695 | F12: 16170.84759 | G12: 73.12042609 | H12: 64.48987136 | I12: 64.20288864 | J12: 88.19679371 | K12: 99.55499566
A13: TRABAJO | B13: 53252.07995 | C13: 29448.6488 | D13: 28068.29202 | E13: 28047.65267 | F13: 23803.43114 | G13: 55.30046683 | H13: 52.70834877 | I13: 52.66959092 | J13: 95.31266514 | K13: 99.92646735
A14: HACIENDA | B14: 31763.48762 | C14: 14372.18778 | D14: 12112.53065 | E14: 12106.22718 | F14: 17391.29984 | G14: 45.2475117 | H14: 38.13350344 | I14: 38.11365842 | J14: 84.2775702 | K14: 99.94795911
A15: TRANSPORTE | B15: 17386.79467 | C15: 13220.71437 | D15: 5393.188968 | E15: 5294.877922 | F15: 4166.080301 | G15: 76.03882498 | H15: 31.01887996 | I15: 30.45344482 | J15: 40.79347618 | K15: 98.17712588
A16: IGUALDAD Y EQUIDAD | B16: 12119.86603 | C16: 9942.640579 | D16: 7414.761359 | E16: 7414.210849 | F16: 2177.225453 | G16: 82.03589505 | H16: 61.17857524 | I16: 61.17403302 | J16: 74.57537362 | K16: 99.99257548
A17: MINAS Y ENERGÍA | B17: 11214.44332 | C17: 8067.579969 | D17: 7284.261067 | E17: 7269.498938 | F17: 3146.863349 | G17: 71.93919252 | H17: 64.95428137 | I17: 64.8226464 | J17: 90.2905344 | K17: 99.79734212
A18: RAMA JUDICIAL | B18: 10414.88358 | C18: 6754.240915 | D18: 6067.068353 | E18: 6064.473354 | F18: 3660.642664 | G18: 64.85181389 | H18: 58.25382787 | I18: 58.22891162 | J18: 89.82605787 | K18: 99.95722813
A19: INCLUSIÓN SOCIAL Y RECONCILIACIÓN | B19: 10349.71848 | C19: 5681.154639 | D19: 4934.649387 | E19: 4932.041521 | F19: 4668.563843 | G19: 54.89187603 | H19: 47.67906872 | I19: 47.65387126 | J19: 86.85997303 | K19: 99.94715195
A20: VIVIENDA, CIUDAD Y TERRITORIO | B20: 8753.082773 | C20: 6811.222313 | D20: 4327.641393 | E20: 4325.472313 | F20: 1941.86046 | G20: 77.81512513 | H20: 49.44133976 | I20: 49.416559 | J20: 63.53692765 | K20: 99.94987847
A21: FISCALÍA | B21: 7137.16978 | C21: 4904.689543 | D21: 4558.911841 | E21: 4542.716029 | F21: 2232.480237 | G21: 68.72037088 | H21: 63.87562552 | I21: 63.64870347 | J21: 92.95005935 | K21: 99.64474391
A22: JUSTICIA Y DEL DERECHO | B22: 5573.270953 | C22: 4013.44895 | D22: 2771.444438 | E22: 2753.055486 | F22: 1559.822004 | G22: 72.01244984 | H22: 49.72743047 | I22: 49.39748147 | J22: 69.05393523 | K22: 99.33648492
A23: INTERIOR | B23: 5433.639283 | C23: 3484.176022 | D23: 2088.812217 | E23: 2077.374022 | F23: 1949.46326 | G23: 64.12232835 | H23: 38.44223196 | I23: 38.23172489 | J23: 59.95139751 | K23: 99.45240675
A24: AGRICULTURA Y DESARROLLO RURAL | B24: 5244.040437 | C24: 3685.510157 | D24: 2015.247888 | E24: 1997.614739 | F24: 1558.53028 | G24: 70.27997211 | H24: 38.42929726 | I24: 38.09304606 | J24: 54.68029668 | K24: 99.12501341
A25: REGISTRADURÍA | B25: 4592.600812 | C25: 2063.575291 | D25: 1488.025618 | E25: 1487.736781 | F25: 2529.025521 | G25: 44.93260738 | H25: 32.40049983 | I25: 32.39421064 | J25: 72.10910232 | K25: 99.98058921
A26: ORGANISMOS DE CONTROL | B26: 4415.918145 | C26: 2895.511515 | D26: 2593.858694 | E26: 2588.88394 | F26: 1520.40663 | G26: 65.56986384 | H26: 58.73883094 | I26: 58.62617592 | J26: 89.58205417 | K26: 99.80821031
A27: PRESIDENCIA DE LA REPÚBLICA | B27: 3860.481456 | C27: 3468.2804 | D27: 852.3584267 | E27: 850.7095964 | F27: 392.2010555 | G27: 89.84061807 | H27: 22.07907061 | I27: 22.03636013 | J27: 24.57582226 | K27: 99.80655671
A28: TECNOLOGÍAS DE LA INFORMACIÓN Y LAS COMUNICACIONES | B28: 2741.750844 | C28: 2349.10607 | D28: 1414.77908 | E28: 1236.0174 | F28: 392.6447742 | G28: 85.67904976 | H28: 51.60130006 | I28: 45.08131738 | J28: 60.22627493 | K28: 87.36469299
A29: RELACIONES EXTERIORES | B29: 2095.33793 | C29: 1418.085147 | D29: 1190.821994 | E29: 1189.767588 | F29: 677.252783 | G29: 67.67811181 | H29: 56.83197812 | I29: 56.78165658 | J29: 83.97394164 | K29: 99.9114556
A30: AMBIENTE Y DESARROLLO SOSTENIBLE | B30: 1781.308693 | C30: 1279.178351 | D30: 957.9632088 | E30: 954.7189177 | F30: 502.1303415 | G30: 71.81115528 | H30: 53.77861864 | I30: 53.596489 | J30: 74.88894787 | K30: 99.66133448
A31: COMERCIO, INDUSTRIA Y TURISMO | B31: 1581.42034 | C31: 1124.145221 | D31: 852.3485381 | E31: 850.6601637 | F31: 457.275119 | G31: 71.08453032 | H31: 53.89765873 | I31: 53.79089557 | J31: 75.82192425 | K31: 99.80191503
A32: CONGRESO DE LA REPÚBLICA | B32: 1333.628 | C32: 1013.807653 | D32: 824.3015999 | E32: 822.7557319 | F32: 319.8203466 | G32: 76.01877386 | H32: 61.80896021 | I32: 61.69304573 | J32: 81.30749429 | K32: 99.8124633
A33: PLANEACIÓN | B33: 1274.67619 | C33: 609.5865544 | D33: 489.2693891 | E33: 485.7457342 | F33: 665.0896356 | G33: 47.82285566 | H33: 38.38381802 | I33: 38.10738272 | J33: 80.26249687 | K33: 99.27981292
A34: INFORMACIÓN ESTADÍSTICA | B34: 1177.225472 | C34: 794.4697216 | D34: 471.2878537 | E34: 471.0752694 | F34: 382.7557504 | G34: 67.48662346 | H34: 40.03377984 | I34: 40.01572176 | J34: 59.32105918 | K34: 99.95489289
A35: CULTURA | B35: 1095.535706 | C35: 872.4735362 | D35: 544.7302227 | E35: 544.4164114 | F35: 223.0621701 | G35: 79.63898677 | H35: 49.72272647 | I35: 49.69408192 | J35: 62.43515706 | K35: 99.94239143
A36: SISTEMA INTEGRAL DE VERDAD, JUSTICIA, REPARACIÓN Y NO REPETICIÓN | B36: 934.3297566 | C36: 734.2966258 | D36: 607.7146747 | E36: 606.8317353 | F36: 200.0331308 | G36: 78.59073529 | H36: 65.04284707 | I36: 64.94834731 | J36: 82.76146905 | K36: 99.85471153
A37: EMPLEO PÚBLICO | B37: 617.3362209 | C37: 489.6921905 | D37: 302.7507837 | E37: 301.4948572 | F37: 127.6440305 | G37: 79.32341792 | H37: 49.04147422 | I37: 48.83803137 | J37: 61.82471143 | K37: 99.58516162
A38: DEPORTE Y RECREACIÓN | B38: 464.3658176 | C38: 340.3462578 | D38: 174.71811 | E38: 174.71811 | F38: 124.0195598 | G38: 73.29270263 | H38: 37.62510145 | I38: 37.62510145 | J38: 51.33539916 | K38: 100
A39: CIENCIA, TECNOLOGÍA E INNOVACIÓN | B39: 299.8643731 | C39: 238.8362562 | D39: 200.9728661 | E39: 200.9728661 | F39: 61.02811689 | G39: 79.64809348 | H39: 67.02125498 | I39: 67.02125498 | J39: 84.14671595 | K39: 100
A40: INTELIGENCIA | B40: 193.82 | C40: 125.429375 | D40: 108.7408259 | E40: 107.5842014 | F40: 68.39062504 | G40: 64.71436124 | H40: 56.10402741 | I40: 55.5072755 | J40: 86.69486391 | K40: 98.93634748
A41: Fuente: Dirección General del Presupuesto Público Nacional- Subdirección de Análisis y Consolidación Presupuestal
B44: =+B8-'CUA1'!C27 -> 0 | C44: =+C8-'CUA1'!D27 -> 0 | D44: =+D8-'CUA1'!E27 -> 0 | E44: =+E8-'CUA1'!F27 -> 0 | F44: =+F8-'CUA1'!G27 -> 0

Sheet CUA5
A1: Cuadro No. 5
A2: Ejecución del presupuesto recursos Nación por sectores
A3: =+'CUA1'!A3:L3 -> Acumulada a Septiembre 2025
A4: Miles de millones de pesos
A5: Sector | B5: Apropiación Vigente | C5: Compromiso | D5: Obligación | E5: Pago | F5: Apropiación sin comprometer | G5: Porcentaje de ejecución
B6: Vigente | G6: Comp./Apro. | H6: Oblig./Apro. | I6: Pago/Apro. | J6: Oblig./Comp. | K6: Pago/Oblig.
B7: (1) | C7: (2) | D7: (3) | E7: (4) | F7: (5)=(1-2) | G7: (6)=(2/1) | H7: (7)=(3/1) | I7: (8)=(4/1) | J7: (9)=(3/2) | K7: (10)=(4/3)
A8: TOTAL RECURSOS NACIÓN | B8: 498521.1359 | C8: 337823.803 | D8: 299521.115 | E8: 298843.7291 | F8: 160697.3328 | G8: 67.76519163 | H8: 60.08192903 | I8: 59.94604995 | J8: 88.66193333 | K8: 99.77384369
A9: SERVICIO DE LA DEUDA PÚBLICA NACIONAL | B9: 109828.422 | C9: 69524.33113 | D9: 69303.34211 | E9: 69299.9589 | F9: 40304.09087 | G9: 63.3026769 | H9: 63.10146395 | I9: 63.09838349 | J9: 99.68214147 | K9: 99.99511826
A10: EDUCACIÓN | B10: 81578.31369 | C10: 63467.88729 | D10: 57695.52128 | E10: 57284.56323 | F10: 18110.4264 | G10: 77.79995003 | H10: 70.72409158 | I10: 70.22033263 | J10: 90.90506041 | K10: 99.28771238
A11: SALUD Y PROTECCIÓN SOCIAL | B11: 66283.58353 | C11: 50160.72585 | D11: 47403.68981 | E11: 47403.59643 | F11: 16122.85768 | G11: 75.67594143 | H11: 71.51648611 | I11: 71.51634523 | J11: 94.5035962 | K11: 99.999803
A12: DEFENSA Y POLICÍA | B12: 57206.67666 | C12: 42031.88797 | D12: 37202.91868 | E12: 37119.45586 | F12: 15174.78869 | G12: 73.47374542 | H12: 65.03247671 | I12: 64.88657972 | J12: 88.5111768 | K12: 99.77565518
A13: TRABAJO | B13: 50181.66962 | C13: 27806.10778 | D13: 26848.83613 | E13: 26836.77882 | F13: 22375.56184 | G13: 55.41088606 | H13: 53.50327388 | I13: 53.47924656 | J13: 96.55733319 | K13: 99.95509187
A14: HACIENDA | B14: 31237.59916 | C14: 14095.06802 | D14: 11858.52327 | E14: 11852.43559 | F14: 17142.53114 | G14: 45.12212333 | H14: 37.96233892 | I14: 37.94285063 | J14: 84.13243022 | K14: 99.94866414
A15: TRANSPORTE | B15: 12415.98193 | C15: 9540.099258 | D15: 3834.920901 | E15: 3777.092281 | F15: 2875.88267 | G15: 76.83725148 | H15: 30.88697231 | I15: 30.42121277 | J15: 40.19791406 | K15: 98.49205181
A16: RAMA JUDICIAL | B16: 10414.88358 | C16: 6754.240915 | D16: 6067.068353 | E16: 6064.473354 | F16: 3660.642664 | G16: 64.85181389 | H16: 58.25382787 | I16: 58.22891162 | J16: 89.82605787 | K16: 99.95722813
A17: INCLUSIÓN SOCIAL Y RECONCILIACIÓN | B17: 10283.53101 | C17: 5680.894914 | D17: 4934.389663 | E17: 4931.781796 | F17: 4602.636096 | G17: 55.24264874 | H17: 47.98341793 | I17: 47.95805829 | J17: 86.85937228 | K17: 99.94714916
A18: VIVIENDA, CIUDAD Y TERRITORIO | B18: 8753.082773 | C18: 6811.222313 | D18: 4327.641393 | E18: 4325.472313 | F18: 1941.86046 | G18: 77.81512513 | H18: 49.44133976 | I18: 49.416559 | J18: 63.53692765 | K18: 99.94987847
A19: IGUALDAD Y EQUIDAD | B19: 7697.595573 | C19: 6237.112325 | D19: 4642.778516 | E19: 4642.238724 | F19: 1460.483248 | G19: 81.02676044 | H19: 60.31465893 | I19: 60.30764646 | J19: 74.43794939 | K19: 99.98837351
A20: MINAS Y ENERGÍA | B20: 7193.515649 | C20: 4398.945996 | D20: 3897.414892 | E20: 3894.900574 | F20: 2794.569653 | G20: 61.15154551 | H20: 54.17955672 | I20: 54.14460416 | J20: 88.5988347 | K20: 99.93548754
A21: FISCALÍA | B21: 7095.704065 | C21: 4868.322283 | D21: 4530.635168 | E21: 4514.742678 | F21: 2227.381782 | G21: 68.60943239 | H21: 63.85039634 | I21: 63.62642293 | J21: 93.06358341 | K21: 99.64922157
A22: INTERIOR | B22: 5215.673059 | C22: 3323.647494 | D22: 1976.842877 | E22: 1966.241997 | F22: 1892.025565 | G22: 63.72422996 | H22: 37.90197075 | I22: 37.69872027 | J22: 59.47811495 | K22: 99.46374695
A23: AGRICULTURA Y DESARROLLO RURAL | B23: 5120.467155 | C23: 3606.478187 | D23: 1960.521953 | E23: 1948.151762 | F23: 1513.988968 | G23: 70.43260073 | H23: 38.28795096 | I23: 38.04636771 | J23: 54.3611205 | K23: 99.36903584
A24: JUSTICIA Y DEL DERECHO | B24: 4472.780494 | C24: 3417.532377 | D24: 2332.615753 | E24: 2326.916602 | F24: 1055.248118 | G24: 76.40733501 | H24: 52.15135765 | I24: 52.02393914 | J24: 68.25438637 | K24: 99.75567557
A25: ORGANISMOS DE CONTROL | B25: 4396.345327 | C25: 2884.359755 | D25: 2582.706934 | E25: 2577.73218 | F25: 1511.985572 | G25: 65.6081254 | H25: 58.7466803 | I25: 58.63352373 | J25: 89.54177541 | K25: 99.80738219
A26: REGISTRADURÍA | B26: 4321.351017 | C26: 1875.521857 | D26: 1375.556801 | E26: 1375.267963 | F26: 2445.829159 | G26: 43.40128469 | H26: 31.83163773 | I26: 31.82495377 | J26: 73.34261636 | K26: 99.97900214
A27: PRESIDENCIA DE LA REPÚBLICA | B27: 3809.479546 | C27: 3461.238161 | D27: 851.0433794 | E27: 849.3945491 | F27: 348.2413848 | G27: 90.85855743 | H27: 22.34014828 | I27: 22.29686599 | J27: 24.5878307 | K27: 99.80625779
A28: AMBIENTE Y DESARROLLO SOSTENIBLE | B28: 1500.701187 | C28: 1044.759723 | D28: 783.0536512 | E28: 780.2687739 | F28: 455.9414641 | G28: 69.61810466 | H28: 52.17918516 | I28: 51.99361342 | J28: 74.95059714 | K28: 99.64435676
A29: RELACIONES EXTERIORES | B29: 1490.253752 | C29: 936.5997194 | D29: 857.1970372 | E29: 856.2650473 | F29: 553.654033 | G29: 62.84833827 | H29: 57.52020659 | I29: 57.45766759 | J29: 91.52223937 | K29: 99.89127472
A30: CONGRESO DE LA REPÚBLICA | B30: 1333.628 | C30: 1013.807653 | D30: 824.3015999 | E30: 822.7557319 | F30: 319.8203466 | G30: 76.01877386 | H30: 61.80896021 | I30: 61.69304573 | J30: 81.30749429 | K30: 99.8124633
A31: CULTURA | B31: 1073.212869 | C31: 857.7313093 | D31: 539.2887264 | E31: 539.0174416 | F31: 215.4815601 | G31: 79.92182481 | H31: 50.249931 | I31: 50.22465319 | J31: 62.87385345 | K31: 99.94969583
A32: INFORMACIÓN ESTADÍSTICA | B32: 1054.272004 | C32: 753.8701102 | D32: 448.3190223 | E32: 448.1180631 | F32: 300.4018939 | G32: 71.50622489 | H32: 42.52403749 | I32: 42.50497607 | J32: 59.46900086 | K32: 99.95517494
A33: PLANEACIÓN | B33: 1015.530446 | C33: 487.1986441 | D33: 386.8639273 | E33: 384.1005744 | F33: 528.3318019 | G33: 47.97479446 | H33: 38.09476405 | I33: 37.82265474 | J33: 79.40578899 | K33: 99.28570417
A34: COMERCIO, INDUSTRIA Y TURISMO | B34: 953.4865155 | C34: 748.7463559 | D34: 566.0220739 | E34: 565.951205 | F34: 204.7401596 | G34: 78.52720975 | H34: 59.36340627 | I34: 59.35597366 | J34: 75.59597044 | K34: 99.98747948
A35: SISTEMA INTEGRAL DE VERDAD, JUSTICIA, REPARACIÓN Y NO REPETICIÓN | B35: 934.3297566 | C35: 734.2966258 | D35: 607.7146747 | E35: 606.8317353 | F35: 200.0331308 | G35: 78.59073529 | H35: 65.04284707 | I35: 64.94834731 | J35: 82.76146905 | K35: 99.85471153
A36: TECNOLOGÍAS DE LA INFORMACIÓN Y LAS COMUNICACIONES | B36: 642.6714113 | C36: 552.562972 | D36: 356.828246 | E36: 325.8729309 | F36: 90.10843924 | G36: 85.97908081 | H36: 55.52265742 | I36: 50.70599457 | J36: 64.57693767 | K36: 91.32486975
A37: DEPORTE Y RECREACIÓN | B37: 464.3658176 | C37: 340.3462578 | D37: 174.71811 | E37: 174.71811 | F37: 124.0195598 | G37: 73.29270263 | H37: 37.62510145 | I37: 37.62510145 | J37: 51.33539916 | K37: 100
A38: CIENCIA, TECNOLOGÍA E INNOVACIÓN | B38: 299.8643731 | C38: 238.8362562 | D38: 200.9728661 | E38: 200.9728661 | F38: 61.02811689 | G38: 79.64809348 | H38: 67.02125498 | I38: 67.02125498 | J38: 84.14671595 | K38: 100
A39: INTELIGENCIA | B39: 193.82 | C39: 125.429375 | D39: 108.7408259 | E39: 107.5842014 | F39: 68.39062504 | G39: 64.71436124 | H39: 56.10402741 | I39: 55.5072755 | J39: 86.69486391 | K39: 98.93634748
A40: EMPLEO PÚBLICO | B40: 58.34389209 | C40: 43.99417005 | D40: 40.12640975 | E40: 40.07684893 | F40: 14.34972204 | G40: 75.40492839 | H40: 68.7756821 | I40: 68.69073608 | J40: 91.20847081 | K40: 99.8764883
A41: Fuente: Dirección General del Presupuesto Público Nacional- Subdirección de Análisis y Consolidación Presupuestal
B44: =+B8-'CUA2'!C27 -> 0 | C44: =+C8-'CUA2'!D27 -> 0 | D44: =+D8-'CUA2'!E27 -> 0 | E44: =+E8-'CUA2'!F27 -> 0 | F44: =+F8-'CUA2'!G27 -> 0

Sheet CUA6
A1: Cuadro No. 6
A2: Ejecución del presupuesto recursos Propios por sectores
A3: =+'CUA1'!A3:L3 -> Acumulada a Septiembre 2025
A4: Miles de millones de pesos
A5: Sector | B5: Apropiación Vigente | C5: Compromiso | D5: Obligación | E5: Pago | F5: Apropiación sin comprometer | G5: Porcentaje de ejecución
B6: Vigente | G6: Comp./Apro. | H6: Oblig./Apro. | I6: Pago/Apro. | J6: Oblig./Comp. | K6: Pago/Oblig.
B7: (1) | C7: (2) | D7: (3) | E7: (4) | F7: (5)=(1-2) | G7: (6)=(2/1) | H7: (7)=(3/1) | I7: (8)=(4/1) | J7: (9)=(3/2) | K7: (10)=(4/3)
A8: TOTAL RECURSOS PROPIOS | B8: 27369.49184 | C8: 20164.35389 | D8: 14292.36262 | E8: 13967.1343 | F8: 7205.137948 | G8: 73.6745644 | H8: 52.22005108 | I8: 51.03176334 | J8: 70.87934825 | K8: 97.72446079
A9: TRANSPORTE | B9: 4970.812742 | C9: 3680.615111 | D9: 1558.268067 | E9: 1517.785641 | F9: 1290.197631 | G9: 74.0445336 | H9: 31.34835585 | I9: 30.5339533 | J9: 42.3371643 | K9: 97.40208848
A10: IGUALDAD Y EQUIDAD | B10: 4422.270459 | C10: 3705.528254 | D10: 2771.982843 | E10: 2771.972125 | F10: 716.742205 | G10: 83.79243849 | H10: 62.68234539 | I10: 62.68210302 | J10: 74.80668485 | K10: 99.99961334
A11: MINAS Y ENERGÍA | B11: 4020.927669 | C11: 3668.633972 | D11: 3386.846175 | E11: 3374.598364 | F11: 352.2936963 | G11: 91.23849705 | H11: 84.23046755 | I11: 83.92586592 | J11: 92.31899941 | K11: 99.6383712
A12: TRABAJO | B12: 3070.410329 | C12: 1642.541029 | D12: 1219.45589 | E12: 1210.873841 | F12: 1427.8693 | G12: 53.49581498 | H12: 39.71638184 | I12: 39.43687363 | J12: 74.24203531 | K12: 99.29623949
A13: DEFENSA Y POLICÍA | B13: 2953.680235 | C13: 1957.621329 | D13: 1594.418098 | E13: 1505.231089 | F13: 996.0589067 | G13: 66.27736155 | H13: 53.98072814 | I13: 50.96120668 | J13: 81.4467065 | K13: 94.40629728
A14: TECNOLOGÍAS DE LA INFORMACIÓN Y LAS COMUNICACIONES | B14: 2099.079433 | C14: 1796.543098 | D14: 1057.950834 | E14: 910.144469 | F14: 302.536335 | G14: 85.58718979 | H14: 50.40070506 | I14: 43.35921998 | J14: 58.88814107 | K14: 86.02899489
A15: JUSTICIA Y DEL DERECHO | B15: 1100.490459 | C15: 595.9165733 | D15: 438.8286856 | E15: 426.138884 | F15: 504.5738859 | G15: 54.15008993 | H15: 39.8757374 | I15: 38.72263321 | J15: 73.63928196 | K15: 97.10825612
A16: SALUD Y PROTECCIÓN SOCIAL | B16: 878.205546 | C16: 604.1422331 | D16: 476.2817228 | E16: 473.1266167 | F16: 274.0633129 | G16: 68.7928055 | H16: 54.23351344 | I16: 53.87424606 | J16: 78.83602515 | K16: 99.33755465
A17: COMERCIO, INDUSTRIA Y TURISMO | B17: 627.9338246 | C17: 375.3988652 | D17: 286.3264641 | E17: 284.7089587 | F17: 252.5349594 | G17: 59.783189 | H17: 45.59819091 | I17: 45.34059921 | J17: 76.27259715 | K17: 99.43508351
A18: RELACIONES EXTERIORES | B18: 605.084178 | C18: 481.4854279 | D18: 333.6249569 | E18: 333.5025406 | F18: 123.5987501 | G18: 79.57329665 | H18: 55.13694938 | I18: 55.1167181 | J18: 69.29076927 | K18: 99.96330721
A19: EMPLEO PÚBLICO | B19: 558.9923289 | C19: 445.6980204 | D19: 262.6243739 | E19: 261.4180083 | F19: 113.2943084 | G19: 79.73240372 | H19: 46.98174919 | I19: 46.76593842 | J19: 58.92428548 | K19: 99.54064979
A20: HACIENDA | B20: 525.8884612 | C20: 277.1197618 | D20: 254.0073801 | E20: 253.7915869 | F20: 248.7686994 | G20: 52.6955395 | H20: 48.30061864 | I20: 48.25958461 | J20: 91.65978581 | K20: 99.91504452
A21: AMBIENTE Y DESARROLLO SOSTENIBLE | B21: 280.6075056 | C21: 234.4186282 | D21: 174.9095575 | E21: 174.4501438 | F21: 46.18887737 | G21: 83.5396857 | H21: 62.3324587 | I21: 62.16873759 | J21: 74.61418867 | K21: 99.73734212
A22: REGISTRADURÍA | B22: 271.2497952 | C22: 188.053434 | D22: 112.4688176 | E22: 112.4688176 | F22: 83.19636122 | G22: 69.32850727 | H22: 41.46318988 | I22: 41.46318988 | J22: 59.80684067 | K22: 100
A23: PLANEACIÓN | B23: 259.1457439 | C23: 122.3879103 | D23: 102.4054618 | E23: 101.6451598 | F23: 136.7578336 | G23: 47.22744369 | H23: 39.51655168 | I23: 39.22316386 | J23: 83.67285754 | K23: 99.25755713
A24: INTERIOR | B24: 217.9662241 | C24: 160.5285283 | D24: 111.9693399 | E24: 111.1320255 | F24: 57.43769587 | G24: 73.64835029 | H24: 51.37004156 | I24: 50.98589286 | J24: 69.75043074 | K24: 99.25219313
A25: AGRICULTURA Y DESARROLLO RURAL | B25: 123.5732821 | C25: 79.0319698 | D25: 54.72593496 | E25: 49.46297703 | F25: 44.54131229 | G25: 63.95554805 | H25: 44.28621951 | I25: 40.02724229 | J25: 69.24531313 | K25: 90.38306437
A26: INFORMACIÓN ESTADÍSTICA | B26: 122.9534679 | C26: 40.59961144 | D26: 22.9688314 | E26: 22.95720632 | F26: 82.35385649 | G26: 33.02030608 | H26: 18.68091383 | I26: 18.67145898 | J26: 56.57401778 | K26: 99.94938762
A27: INCLUSIÓN SOCIAL Y RECONCILIACIÓN | B27: 66.18747203 | C27: 0.2597245403 | D27: 0.2597245403 | E27: 0.2597245403 | F27: 65.92774749 | G27: 0.3924074032 | H27: 0.3924074032 | I27: 0.3924074032 | J27: 100 | K27: 100
A28: EDUCACIÓN | B28: 59.66940273 | C28: 38.52692373 | D28: 25.8544823 | E28: 25.62699385 | F28: 21.14247899 | G28: 64.56730246 | H28: 43.32954767 | I28: 42.94829959 | J28: 67.10756997 | K28: 99.12011985
A29: PRESIDENCIA DE LA REPÚBLICA | B29: 51.0019095 | C29: 7.042238774 | D29: 1.315047299 | E29: 1.315047299 | F29: 43.95967073 | G29: 13.80779434 | H29: 2.578427576 | I29: 2.578427576 | J29: 18.67371075 | K29: 100
A30: FISCALÍA | B30: 41.465715 | C30: 36.36726017 | D30: 28.27667268 | E30: 27.97335154 | F30: 5.098454826 | G30: 87.70440875 | H30: 68.19289786 | I30: 67.46139923 | J30: 77.7531014 | K30: 98.92730965
A31: CULTURA | B31: 22.32283694 | C31: 14.74222694 | D31: 5.441496321 | E31: 5.39896978 | F31: 7.58061 | G31: 66.04100984 | H31: 24.37636549 | I31: 24.1858586 | J31: 36.91095207 | K31: 99.21847708
A32: ORGANISMOS DE CONTROL | B32: 19.57281803 | C32: 11.15175966 | D32: 11.15175966 | E32: 11.15175966 | F32: 8.421058377 | G32: 56.9757489 | H32: 56.9757489 | I32: 56.9757489 | J32: 100 | K32: 100
A33: Fuente: Dirección General del Presupuesto Público Nacional- Subdirección de Análisis y Consolidación Presupuestal
B36: =+B8-'CUA3'!C25 -> 0 | C36: =+C8-'CUA3'!D25 -> 0 | D36: =+D8-'CUA3'!E25 -> 0 | E36: =+E8-'CUA3'!F25 -> 0 | F36: =+F8-'CUA3'!G25 -> 0

Sheet CUA7
A1: Cuadro No. 7
A2: Ejecución del Presupuesto General de la Nación detallado por sector, entidad y rubro presupuestal
A3: Acumulada a Septiembre 2025
A4: Cifras en Pesos
A5: Entidad/Detalle | B5: Apropiación Vigente | C5: Compromiso | D5: Obligación | E5: Pago | F5: Apropiación sin comprometer | G5: Porcentaje de Ejecución
G6: Comp/ Aprop | H6: Oblig/ Aprop | I6: Pago/ Aprop
A7: TOTAL | B7: =+[1]CUA1!C27*1000000000 -> 5.258906277e+14 | C7: =+[1]CUA1!D27*1000000000 -> 3.579881569e+14 | D7: =+[1]CUA1!E27*1000000000 -> 3.138134776e+14 | E7: =+[1]CUA1!F27*1000000000 -> 3.128108634e+14 | F7: =+B7-C7 -> 1.679024708e+14 | G7: =IFERROR(IF(C7>0,+C7/B7*100,0),0) -> 68.07273948 | H7: =IFERROR(IF(D7>0,+D7/B7*100,0),0) -> 59.67276485 | I7: =IFERROR(IF(E7>0,+E7/B7*100,0),0) -> 59.48211414
A8: TOTAL SIN DEUDA | B8: =+[1]CUA1!C28*1000000000 -> 4.132854413e+14 | C8: =+[1]CUA1!D28*1000000000 -> 2.865473953e+14 | D8: =+[1]CUA1!E28*1000000000 -> 2.42593705e+14 | E8: =+[1]CUA1!F28*1000000000 -> 2.41594474e+14 | F8: =+B8-C8 -> 1.26738046e+14 | G8: =IFERROR(IF(C8>0,+C8/B8*100,0),0) -> 69.33401631 | H8: =IFERROR(IF(D8>0,+D8/B8*100,0),0) -> 58.69882671 | I8: 58.45704926
A9: AGRICULTURA Y DESARROLLO RURAL | B9: 5244040437000 | C9: 3.685510157e+12 | D9: 2.015247888e+12 | E9: 1.997614739e+12 | F9: 1.55853028e+12 | G9: 70.27997211 | H9: 38.42929726 | I9: 38.09304606
A10: 170101 Ministerio de Agricultura y Desarrollo Rural | B10: 1584725649864 | C10: 9.920852143e+11 | D10: 5.058120367e+11 | E10: 5.058120198e+11 | F10: 5.926404356e+11 | G10: 62.60296313 | H10: 31.91795607 | I10: 31.917955
A11: Funcionamiento | B11: 477152969000 | C11: 3.234738448e+11 | D11: 2.713466186e+11 | E11: 2.713466017e+11 | F11: 1.536791242e+11 | G11: 67.79248287 | H11: 56.86784663 | I11: 56.86784309
A12: Gastos de Personal | B12: 36807073000 | C12: 23015886647 | D12: 23015886647 | E12: 23015886647 | F12: 13791186353 | G12: 62.53115168 | H12: 62.53115168 | I12: 62.53115168
A13: 01-01-01-- SALARIO | B13: 24121006000 | C13: 14942407018 | D13: 14942407018 | E13: 14942407018 | F13: 9178598982 | G13: 61.94769413 | H13: 61.94769413 | I13: 61.94769413
A14: 01-01-02-- CONTRIBUCIONES INHERENTES A LA NÓMINA | B14: 8786830000 | C14: 5707729015 | D14: 5707729015 | E14: 5707729015 | F14: 3079100985 | G14: 64.9577722 | H14: 64.9577722 | I14: 64.9577722
A15: 01-01-03-- REMUNERACIONES NO CONSTITUTIVAS DE FACTOR SALARIAL | B15: 3899237000 | C15: 2365750614 | D15: 2365750614 | E15: 2365750614 | F15: 1533486386 | G15: 60.67214211 | H15: 60.67214211 | I15: 60.67214211
A16: Adquisición de Bienes y Servicios | B16: 15682000000 | C16: 1.314425236e+10 | D16: 7187542419 | E16: 7187525525 | F16: 2537747635 | G16: 83.81744908 | H16: 45.83307243 | I16: 45.8329647
A17: 02---- ADQUISICIÓN DE BIENES Y SERVICIOS | B17: 15682000000 | C17: 1.314425236e+10 | D17: 7187542419 | E17: 7187525525 | F17: 2537747635 | G17: 83.81744908 | H17: 45.83307243 | I17: 45.8329647
A18: Transferencias | B18: 413589896000 | C18: 2.778234893e+11 | D18: 2.316529731e+11 | E18: 2.316529731e+11 | F18: 1.357664067e+11 | G18: 67.17366453 | H18: 56.01030763 | I18: 56.01030763
A19: 03-03-01-020- FONDO DE FOMENTO AGROPECUARIO DECRETO LEY 1279 DE 1994 | B19: 428816000 | C19: 0 | D19: 0 | E19: 0 | F19: 428816000 | G19: 0 | H19: 0 | I19: 0
A20: 03-03-01-067- DESARROLLO DE FUNCIONES DE APOYO AL SECTOR AGROPECUARIO EN CIENCIA, TECNOLOGÍA E INNOVACIÓN A CARGO DE CORPOICA A NIVEL NACIONAL. LEY 1731 DE 2014 | B20: 226754750000 | C20: 216754750000 | D20: 181043960431 | E20: 181043960431 | F20: 10000000000 | G20: 95.58994905 | H20: 79.84130892 | I20: 79.84130892
A21: 03-03-01-999- OTRAS TRANSFERENCIAS - DISTRIBUCIÓN PREVIO CONCEPTO DGPPN | B21: 30000000000 | C21: 0 | D21: 0 | E21: 0 | F21: 30000000000 | G21: 0 | H21: 0 | I21: 0
A22: 03-03-04-050- TRANSFERENCIA A LA SOCIEDAD FIDUCIARIA DE DESARROLLO AGROPECUARIO S.A. FIDUAGRARIA - PATRIMONIO AUTÓNOMO DE REMANENTES - INCODER EN LIQUIDACIÓN | B22: 2430000000 | C22: 0 | D22: 0 | E22: 0 | F22: 2430000000 | G22: 0 | H22: 0 | I22: 0
A23: 03-04-02-004- BONOS PENSIONALES (DE PENSIONES) | B23: 1558477000 | C23: 256729000 | D23: 256729000 | E23: 256729000 | F23: 1301748000 | G23: 16.47306954 | H23: 16.47306954 | I23: 16.47306954
A24: 03-04-02-012- INCAPACIDADES Y LICENCIAS DE MATERNIDAD Y PATERNIDAD (NO DE PENSIONES) | B24: 186000000 | C24: 31539496 | D24: 31539496 | E24: 31539496 | F24: 154460504 | G24: 16.95671828 | H24: 16.95671828 | I24: 16.95671828
A25: 03-04-02-080- MESADAS PENSIONALES DEL IDEMA (DE PENSIONES) | B25: 3556452000 | C25: 1864682380 | D25: 1864682380 | E25: 1864682380 | F25: 1691769620 | G25: 52.43097279 | H25: 52.43097279 | I25: 52.43097279
A26: 03-06-01-001- FORTALECIMIENTO DE LAS ASOCIACIONES Y LIGAS DE CONSUMIDORES (LEY 73 DE 1981 Y DECRETO 1320 DE 1982) | B26: 846284000 | C26: 0 | D26: 0 | E26: 0 | F26: 846284000 | G26: 0 | H26: 0 | I26: 0
A27: 03-11-02-001- TRANSFERENCIAS AL SECTOR AGRÍCOLA Y SECTOR INDUSTRIAL PARA APOYO A LA PRODUCCIÓN - ARTÍCULO 1 LEY 16 DE 1990 Y ARTÍCULO 1 LEY 101 DE 1993; LEY 795 DE 2003 | B27: 71826700000 | C27: 10160000000 | D27: 0 | E27: 0 | F27: 61666700000 | G27: 14.14515772 | H27: 0 | I27: 0
A28: 03-11-06-004- APERTURA Y/U OPERACIÓN OFICINAS DE LA RED SOCIAL DEL BANCO AGRARIO A NIVEL NACIONAL. LEY 795 DE 2003 | B28: 2330000000 | C28: 0 | D28: 0 | E28: 0 | F28: 2330000000 | G28: 0 | H28: 0 | I28: 0
A29: 03-02-02-- A ORGANIZACIONES INTERNACIONALES | B29: 4103000000 | C29: 1534217700 | D29: 1235433315 | E29: 1235433315 | F29: 2568782300 | G29: 37.39258348 | H29: 30.11048782 | I29: 30.11048782
A30: 03-10--- SENTENCIAS Y CONCILIACIONES | B30: 4500000000 | C30: 4221570686 | D30: 4220628438 | E30: 4220628438 | F30: 278429314.3 | G30: 93.81268191 | H30: 93.79174306 | I30: 93.79174306
A31: 03-04-02-009- OBLIGACIONES CONVENCIONALES PENSIONADOS DEL IDEMA (OTRAS PRESTACIONES DE JUBILACIÓN) | B31: 121165000 | C31: 0 | D31: 0 | E31: 0 | F31: 121165000 | G31: 0 | H31: 0 | I31: 0
A32: 03-03-04-071- FONDO PARA EL ACCESO A LOS INSUMOS AGROPECUARIOS -FAIA, LEY 2183 DE 2022 | B32: 46000000000 | C32: 41000000000 | D32: 41000000000 | E32: 41000000000 | F32: 5000000000 | G32: 89.13043478 | H32: 89.13043478 | I32: 89.13043478
A33: 03-03-04-070- FONDO DE FOMENTO PARA LAS MUJERES RURALES -FOMMUR, LEY 731 DE 2002 | B33: 16948252000 | C33: 0 | D33: 0 | E33: 0 | F33: 16948252000 | G33: 0 | H33: 0 | I33: 0
A34: 03-03-01-080- TRANSFERENCIA PARA ENTIDADES EN PROCESO DE LIQUIDACIÓN | B34: 2000000000 | C34: 2000000000 | D34: 2000000000 | E34: 2000000000 | F34: 0 | G34: 100 | H34: 100 | I34: 100
A35: Gastos por Tributos, Multas, Sanciones e Intereses de Mora | B35: 11074000000 | C35: 9490216484 | D35: 9490216484 | E35: 9490216484 | F35: 1583783516 | G35: 85.69818028 | H35: 85.69818028 | I35: 85.69818028
A36: 08-01--- IMPUESTOS | B36: 7737000000 | C36: 6690679458 | D36: 6690679458 | E36: 6690679458 | F36: 1046320542 | G36: 86.47640504 | H36: 86.47640504 | I36: 86.47640504
A37: 08-03--- TASAS Y DERECHOS ADMINISTRATIVOS | B37: 34000000 | C37: 0 | D37: 0 | E37: 0 | F37: 34000000 | G37: 0 | H37: 0 | I37: 0
A38: 08-04-01-- CUOTA DE FISCALIZACIÓN Y AUDITAJE | B38: 3303000000 | C38: 2799537026 | D38: 2799537026 | E38: 2799537026 | F38: 503462974 | G38: 84.75740315 | H38: 84.75740315 | I38: 84.75740315
A39: Inversión | B39: 1107572680864 | C39: 668611369533 | D39: 2.344654181e+11 | E39: 2.344654181e+11 | F39: 438961311331 | G39: 60.36726809 | H39: 21.16930312 | I39: 21.16930312
A40: A-Inversión | B40: 1107572680864 | C40: 668611369533 | D40: 2.344654181e+11 | E40: 2.344654181e+11 | F40: 438961311331 | G40: 60.36726809 | H40: 21.16930312 | I40: 21.16930312
A41: 1702-1100-19-30101B- 3. DERECHO HUMANO A LA ALIMENTACIÓN / B. PROVEER ACCESO A FACTORES PRODUCTIVOS EN FORMA OPORTUNA Y SIMULTÁNEA | B41: 63102000000 | C41: 12364643985 | D41: 7138400496 | E41: 7138400496 | F41: 50737356015 | G41: 19.59469428 | H41: 11.312479 | I41: 11.312479
A42: 1702-1100-20-30101B- 3. DERECHO HUMANO A LA ALIMENTACIÓN / B. PROVEER ACCESO A FACTORES PRODUCTIVOS EN FORMA OPORTUNA Y SIMULTÁNEA | B42: 60000000000 | C42: 55345358441 | D42: 2426574661 | E42: 2426574661 | F42: 4654641559 | G42: 92.24226407 | H42: 4.044291101 | I42: 4.044291101
A43: 1702-1100-21-30101B- 3. DERECHO HUMANO A LA ALIMENTACIÓN / B. PROVEER ACCESO A FACTORES PRODUCTIVOS EN FORMA OPORTUNA Y SIMULTÁNEA | B43: 100000000000 | C43: 2050898553 | D43: 957862329 | E43: 957862329 | F43: 97949101447 | G43: 2.050898553 | H43: 0.957862329 | I43: 0.957862329
A44: 1703-1100-8-30101B- 3. DERECHO HUMANO A LA ALIMENTACIÓN / B. PROVEER ACCESO A FACTORES PRODUCTIVOS EN FORMA OPORTUNA Y SIMULTÁNEA | B44: 480000000000 | C44: 422633262120 | D44: 1.325185567e+11 | E44: 1.325185567e+11 | F44: 57366737880 | G44: 88.04859628 | H44: 27.60803265 | I44: 27.60803265
A45: 1709-1100-6-30101B- 3. DERECHO HUMANO A LA ALIMENTACIÓN / B. PROVEER ACCESO A FACTORES PRODUCTIVOS EN FORMA OPORTUNA Y SIMULTÁNEA | B45: 130000000000 | C45: 32481880091 | D45: 1.429537341e+10 | E45: 1.429537341e+10 | F45: 97518119909 | G45: 24.98606161 | H45: 10.99644109 | I45: 10.99644109
A46: 1799-1100-9-53105B- 5. CONVERGENCIA REGIONAL / B. ENTIDADES PÚBLICAS TERRITORIALES Y NACIONALES FORTALECIDAS | B46: 33157874072 | C46: 31009212319 | D46: 11132371497 | E46: 11132371497 | F46: 2148661753 | G46: 93.51990496 | H46: 33.57383972 | I46: 33.57383972
A47: 1799-1100-16-30206D- 3. DERECHO HUMANO A LA ALIMENTACIÓN / D. MINISTERIO DE AGRICULTURA Y DESARROLLO RURAL COMO RECTOR DEL DISEÑO DE POLÍTICA | B47: 12000000000 | C47: 4068111568 | D47: 2175792368 | E47: 2175792368 | F47: 7931888432 | G47: 33.90092973 | H47: 18.13160307 | I47: 18.13160307
A48: 1799-1100-17-30206D- 3. DERECHO HUMANO A LA ALIMENTACIÓN / D. MINISTERIO DE AGRICULTURA Y DESARROLLO RURAL COMO RECTOR DEL DISEÑO DE POLÍTICA | B48: 41714806792 | C48: 24159752826 | D48: 9481720606 | E48: 9481720606 | F48: 17555053966 | G48: 57.91649221 | H48: 22.72986821 | I48: 22.72986821
A49: 1701-1100-4-51103F- 5. CONVERGENCIA REGIONAL / F. PROVISIÓN Y MEJORAMIENTO DE VIVIENDA RURAL | B49: 40000000000 | C49: 11158927742 | D49: 2849131255 | E49: 2849131255 | F49: 28841072258 | G49: 27.89731936 | H49: 7.122828137 | I49: 7.122828137
A50: 1799-1100-19-30206D- 3. DERECHO HUMANO A LA ALIMENTACIÓN / D. MINISTERIO DE AGRICULTURA Y DESARROLLO RURAL COMO RECTOR DEL DISEÑO DE POLÍTICA | B50: 14000000000 | C50: 9951945307 | D50: 5009270963 | E50: 5009270963 | F50: 4048054693 | G50: 71.08532362 | H50: 35.78050688 | I50: 35.78050688
A51: 1799-1100-20-30206D- 3. DERECHO HUMANO A LA ALIMENTACIÓN / D. MINISTERIO DE AGRICULTURA Y DESARROLLO RURAL COMO RECTOR DEL DISEÑO DE POLÍTICA | B51: 10000000000 | C51: 8860085049 | D51: 6265613666 | E51: 6265613666 | F51: 1139914951 | G51: 88.60085049 | H51: 62.65613666 | I51: 62.65613666
A52: 1703-1100-8-30101BZ- 3. DERECHO HUMANO A LA ALIMENTACIÓN / B. PROVEER ACCESO A FACTORES PRODUCTIVOS EN FORMA OPORTUNA Y SIMULTÁNEA / Z. ECI CATATUMBO | B52: 51700000000 | C52: 51700000000 | D52: 38607000000 | E52: 38607000000 | F52: 0 | G52: 100 | H52: 74.67504836 | I52: 74.67504836
A53: 1708-1100-3-40403A- 4. TRANSFORMACIÓN PRODUCTIVA, INTERNACIONALIZACIÓN Y ACCIÓN CLIMÁTICA / A. MODELOS DE PRODUCCIÓN SOSTENIBLE Y REGENERATIVOS EN AGRICULTURA Y GANADERÍA | B53: 56898000000 | C53: 1306500303 | D53: 684977594.6 | E53: 684977594.6 | F53: 55591499697 | G53: 2.296214811 | H53: 1.203869371 | I53: 1.203869371
A54: 1708-1100-5-40403A- 4. TRANSFORMACIÓN PRODUCTIVA, INTERNACIONALIZACIÓN Y ACCIÓN CLIMÁTICA / A. MODELOS DE PRODUCCIÓN SOSTENIBLE Y REGENERATIVOS EN AGRICULTURA Y GANADERÍA | B54: 15000000000 | C54: 1520791229 | D54: 922772549 | E54: 922772549 | F54: 13479208771 | G54: 10.13860819 | H54: 6.151816993 | I54: 6.151816993
A55: 170106 Unidad de Planificación de Tierras Rurales, Adecuación de Tierras y Usos Agropecuarios-UPRA | B55: 55200868224 | C55: 5.09524582e+10 | D55: 3.600871497e+10 | E55: 3.600783247e+10 | F55: 4248410026 | G55: 92.30372608 | H55: 65.23215328 | I55: 65.23055457
A56: Funcionamiento | B56: 14000585000 | C56: 1.048189202e+10 | D56: 9723482160 | E56: 9723482160 | F56: 3518692977 | G56: 74.86752891 | H56: 69.45054196 | I56: 69.45054196
A57: Gastos de Personal | B57: 10927436000 | C57: 7978028226 | D57: 7978028226 | E57: 7978028226 | F57: 2949407774 | G57: 73.00915078 | H57: 73.00915078 | I57: 73.00915078
A58: 01-01-01-- SALARIO | B58: 7170502000 | C58: 5229267238 | D58: 5229267238 | E58: 5229267238 | F58: 1941234762 | G58: 72.92749152 | H58: 72.92749152 | I58: 72.92749152
A59: 01-01-02-- CONTRIBUCIONES INHERENTES A LA NÓMINA | B59: 2622333000 | C59: 2039886789 | D59: 2039886789 | E59: 2039886789 | F59: 582446211 | G59: 77.78900654 | H59: 77.78900654 | I59: 77.78900654
A60: 01-01-03-- REMUNERACIONES NO CONSTITUTIVAS DE FACTOR SALARIAL | B60: 1134601000 | C60: 708874199 | D60: 708874199 | E60: 708874199 | F60: 425726801 | G60: 62.47784014 | H60: 62.47784014 | I60: 62.47784014
A61: Adquisición de Bienes y Servicios | B61: 2919381000 | C61: 2500082321 | D61: 1741672458 | E61: 1741672458 | F61: 419298679.1 | G61: 85.63741152 | H61: 59.65896392 | I61: 59.65896392
A62: 02---- ADQUISICIÓN DE BIENES Y SERVICIOS | B62: 2919381000 | C62: 2500082321 | D62: 1741672458 | E62: 1741672458 | F62: 419298679.1 | G62: 85.63741152 | H62: 59.65896392 | I62: 59.65896392
A63: Transferencias | B63: 36755000 | C63: 3591476 | D63: 3591476 | E63: 3591476 | F63: 33163524 | G63: 9.771394368 | H63: 9.771394368 | I63: 9.771394368
A64: 03-04-02-012- INCAPACIDADES Y LICENCIAS DE MATERNIDAD Y PATERNIDAD (NO DE PENSIONES) | B64: 36755000 | C64: 3591476 | D64: 3591476 | E64: 3591476 | F64: 33163524 | G64: 9.771394368 | H64: 9.771394368 | I64: 9.771394368
A65: Gastos por Tributos, Multas, Sanciones e Intereses de Mora | B65: 117013000 | C65: 190000 | D65: 190000 | E65: 190000 | F65: 116823000 | G65: 0.1623751207 | H65: 0.1623751207 | I65: 0.1623751207
A66: 08-03--- TASAS Y DERECHOS ADMINISTRATIVOS | B66: 413000 | C66: 190000 | D66: 190000 | E66: 190000 | F66: 223000 | G66: 46.00484262 | H66: 46.00484262 | I66: 46.00484262
A67: 08-04-01-- CUOTA DE FISCALIZACIÓN Y AUDITAJE | B67: 116600000 | C67: 0 | D67: 0 | E67: 0 | F67: 116600000 | G67: 0 | H67: 0 | I67: 0
A68: Inversión | B68: 41200283224 | C68: 4.047056618e+10 | D68: 2.628523281e+10 | E68: 2.628435031e+10 | F68: 729717048.8 | G68: 98.22885429 | H68: 63.79867019 | I68: 63.79652821
A69: A-Inversión | B69: 41200283224 | C69: 4.047056618e+10 | D69: 2.628523281e+10 | E69: 2.628435031e+10 | F69: 729717048.8 | G69: 98.22885429 | H69: 63.79867019 | I69: 63.79652821
A70: 1704-1100-9-30101A- 3. DERECHO HUMANO A LA ALIMENTACIÓN / A. ORDENAR LA PRODUCCIÓN AGROPECUARIA | B70: 15000000000 | C70: 14874603495 | D70: 9978388191 | E70: 9978388191 | F70: 125396505 | G70: 99.1640233 | H70: 66.52258794 | I70: 66.52258794
A71: 1704-1100-10-30206C- 3. DERECHO HUMANO A LA ALIMENTACIÓN / C. PRODUCCIÓN DE INFORMACIÓN PARA MEJORAR LA TOMA DE DECISIONES | B71: 8000000000 | C71: 7834965161 | D71: 5391849226 | E71: 5390966726 | F71: 165034838.7 | G71: 97.93706452 | H71: 67.39811533 | I71: 67.38708408
A72: 1704-1100-11-30206C- 3. DERECHO HUMANO A LA ALIMENTACIÓN / C. PRODUCCIÓN DE INFORMACIÓN PARA MEJORAR LA TOMA DE DECISIONES | B72: 3000000000 | C72: 2976927500 | D72: 2002562180 | E72: 2002562180 | F72: 23072500 | G72: 99.23091667 | H72: 66.75207267 | I72: 66.75207267
A73: 1799-1100-3-53105B- 5. CONVERGENCIA REGIONAL / B. ENTIDADES PÚBLICAS TERRITORIALES Y NACIONALES FORTALECIDAS | B73: 12200283224 | C73: 1.181111594e+10 | D73: 6863343339 | E73: 6863343339 | F73: 389167282.1 | G73: 96.8101783 | H73: 56.25560664 | I73: 56.25560664
A74: 1704-1100-11-10303A- 1. ORDENAMIENTO DEL TERRITORIO ALREDEDOR DEL AGUA Y JUSTICIA AMBIENTAL / A. ARMONIZACIÓN Y RACIONALIZACIÓN DE LOS INSTRUMENTOS DE ORDENAMIENTO Y PLANIFICACIÓN TERRITORIAL | B74: 3000000000 | C74: 2972954077 | D74: 2049089875 | E74: 2049089875 | F74: 27045923 | G74: 99.09846923 | H74: 68.30299583 | I74: 68.30299583
A75: 170200 Instituto Colombiano Agropecuario (ICA) | B75: 490263615733 | C75: 3.762828936e+11 | D75: 295395586023 | E75: 2.781883164e+11 | F75: 1.139807221e+11 | G75: 76.75113582 | H75: 60.25239821 | I75: 56.74259877
A76: Funcionamiento | B76: 219595508000 | C76: 1.762934142e+11 | D76: 1.63438559e+11 | E76: 1.621792137e+11 | F76: 4.330209381e+10 | G76: 80.28097469 | H76: 74.42709575 | I76: 73.85361164
A77: Gastos de Personal | B77: 141147808000 | C77: 105366252071 | D77: 104825754774 | E77: 104825754774 | F77: 35781555929 | G77: 74.64958441 | H77: 74.26665441 | I77: 74.26665441
A78: 01-01-01-- SALARIO | B78: 91070877000 | C78: 72095170383 | D78: 71756739186 | E78: 71756739186 | F78: 18975706617 | G78: 79.1638038 | H78: 78.79219082 | I78: 78.79219082
A79: 01-01-02-- CONTRIBUCIONES INHERENTES A LA NÓMINA | B79: 34518351000 | C79: 26680924348 | D79: 26680924348 | E79: 26680924348 | F79: 7837426652 | G79: 77.29489844 | H79: 77.29489844 | I79: 77.29489844
A80: 01-01-03-- REMUNERACIONES NO CONSTITUTIVAS DE FACTOR SALARIAL | B80: 13570391000 | C80: 5703902717 | D80: 5703902717 | E80: 5703902717 | F80: 7866488283 | G80: 42.03197032 | H80: 42.03197032 | I80: 42.03197032
A81: 01-02-01-- SALARIO | B81: 1337223000 | C81: 624456767 | D81: 456769467 | E81: 456769467 | F81: 712766233 | G81: 46.6980277 | H81: 34.15806242 | I81: 34.15806242
A82: 01-02-03-- REMUNERACIONES NO CONSTITUTIVAS DE FACTOR SALARIAL | B82: 19976000 | C82: 3249004 | D82: 3249004 | E82: 3249004 | F82: 16726996 | G82: 16.26453744 | H82: 16.26453744 | I82: 16.26453744
A83: 01-02-02-- CONTRIBUCIONES INHERENTES A LA NÓMINA | B83: 630990000 | C83: 258548852 | D83: 224170052 | E83: 224170052 | F83: 372441148 | G83: 40.97511086 | H83: 35.52672023 | I83: 35.52672023
A84: Adquisición de Bienes y Servicios | B84: 60542160911 | C84: 5.488001797e+10 | D84: 4.274607674e+10 | E84: 4.165488489e+10 | F84: 5662142943 | G84: 90.64760349 | H84: 70.60546914 | I84: 68.80310227
A85: 02---- ADQUISICIÓN DE BIENES Y SERVICIOS | B85: 60542160911 | C85: 5.488001797e+10 | D85: 4.274607674e+10 | E85: 4.165488489e+10 | F85: 5662142943 | G85: 90.64760349 | H85: 70.60546914 | I85: 68.80310227
A86: Transferencias | B86: 14440635524 | C86: 1.282576833e+10 | D86: 1.264535167e+10 | E86: 1.247719817e+10 | F86: 1614867196 | G86: 88.81720134 | H86: 87.56783347 | I86: 86.40338679
A87: 03-04-02-001- MESADAS PENSIONALES (DE PENSIONES) | B87: 140372000 | C87: 77402322 | D87: 77402322 | E87: 77402322 | F87: 62969678 | G87: 55.14085573 | H87: 55.14085573 | I87: 55.14085573
A88: 03-04-02-002- CUOTAS PARTES PENSIONALES (DE PENSIONES) | B88: 36670000 | C88: 12248609.76 | D88: 2420544.11 | E88: 2420544.11 | F88: 24421390.24 | G88: 33.40226278 | H88: 6.600883856 | I88: 6.600883856
A89: 03-04-02-022- PROGRAMAS DE VIVIENDA Y OTROS (NO DE PENSIONES) | B89: 2441421000 | C89: 2437923840 | D89: 2437923840 | E89: 2437923840 | F89: 3497160 | G89: 99.85675719 | H89: 99.85675719 | I89: 99.85675719
A90: 03-02-02-- A ORGANIZACIONES INTERNACIONALES | B90: 768172524 | C90: 705698284 | D90: 705698284 | E90: 643172524 | F90: 62474239.98 | G90: 91.8671603 | H90: 91.8671603 | I90: 83.72761377
A91: 03-10--- SENTENCIAS Y CONCILIACIONES | B91: 9054000000 | C91: 7915538521 | D91: 7915538521 | E91: 7915538521 | F91: 1138461479 | G91: 87.42587277 | H91: 87.42587277 | I91: 87.42587277
A92: 03-03-01-085- FONDO NACIONAL DE EMERGENCIAS SANITARIAS Y FITOSANITARIAS DEL INSTITUTO COLOMBIANO AGROPECUARIO - ICA | B92: 2000000000 | C92: 1676956751 | D92: 1506368157 | E92: 1400740416 | F92: 323043249 | G92: 83.84783755 | H92: 75.31840784 | I92: 70.03702079
A93: Adquisición de Activos Financieros | B93: 0 | C93: 0 | D93: 0 | E93: 0 | F93: 0 | G93: 0 | H93: 0 | I93: 0
A94: 06-01-04-011- PRÉSTAMOS DE CONSUMO | B94: 0 | C94: 0 | D94: 0 | E94: 0 | F94: 0 | G94: 0 | H94: 0 | I94: 0
A95: Gastos por Tributos, Multas, Sanciones e Intereses de Mora | B95: 3464903565 | C95: 3221375821 | D95: 3221375821 | E95: 3221375821 | F95: 243527744 | G95: 92.97158667 | H95: 92.97158667 | I95: 92.97158667
A96: 08-01--- IMPUESTOS | B96: 2364903565 | C96: 2293204226 | D96: 2293204226 | E96: 2293204226 | F96: 71699339 | G96: 96.96819185 | H96: 96.96819185 | I96: 96.96819185
A97: 08-04-01-- CUOTA DE FISCALIZACIÓN Y AUDITAJE | B97: 1100000000 | C97: 928171595 | D97: 928171595 | E97: 928171595 | F97: 171828405 | G97: 84.37923591 | H97: 84.37923591 | I97: 84.37923591
A98: Inversión | B98: 270668107733 | C98: 1.999894794e+11 | D98: 1.31957027e+11 | E98: 1.160091027e+11 | F98: 7.067862832e+10 | G98: 73.88734531 | H98: 48.75233663 | I98: 42.86027775
A99: A-Inversión | B99: 270668107733 | C99: 1.999894794e+11 | D99: 1.31957027e+11 | E99: 1.160091027e+11 | F99: 7.067862832e+10 | G99: 73.88734531 | H99: 48.75233663 | I99: 42.86027775
A100: 1799-1100-3-53105B- 5. CONVERGENCIA REGIONAL / B. ENTIDADES PÚBLICAS TERRITORIALES Y NACIONALES FORTALECIDAS | B100: 68133621547 | C100: 4.827681418e+10 | D100: 2.794271392e+10 | E100: 2.542540702e+10 | F100: 1.985680737e+10 | G100: 70.85608116 | H100: 41.01163755 | I100: 37.31697573
A101: 1707-1100-6-30204A- 3. DERECHO HUMANO A LA ALIMENTACIÓN / A. POLÍTICA DE INOCUIDAD DE LOS ALIMENTOS PARA EL PAÍS | B101: 101267243093 | C101: 7.481980043e+10 | D101: 5.16138045e+10 | E101: 4.445969452e+10 | F101: 2.644744266e+10 | G101: 73.88351667 | H101: 50.96791709 | I101: 43.90333257
A102: 1707-1100-7-30204A- 3. DERECHO HUMANO A LA ALIMENTACIÓN / A. POLÍTICA DE INOCUIDAD DE LOS ALIMENTOS PARA EL PAÍS | B102: 101267243093 | C102: 7.68928648e+10 | D102: 5.24005086e+10 | E102: 4.612400121e+10 | F102: 2.43743783e+10 | G102: 75.93063902 | H102: 51.7447765 | I102: 45.54681238
A103: 171500 Autoridad Nacional de Acuicultura y Pesca - AUNAP | B103: 97937013996 | C103: 5.365199132e+10 | D103: 2.994333189e+10 | E103: 2.989759189e+10 | F103: 4.428502268e+10 | G103: 54.78213918 | H103: 30.57407069 | I103: 30.5273672
A104: Funcionamiento | B104: 24417000000 | C104: 1.723721708e+10 | D104: 1.410588513e+10 | E104: 1.410588513e+10 | F104: 7179782923 | G104: 70.59514714 | H104: 57.7707545 | I104: 57.7707545
A105: Gastos de Personal | B105: 15487800000 | C105: 9887627662 | D105: 9877081120 | E105: 9877081120 | F105: 5600172338 | G105: 63.84139556 | H105: 63.77329976 | I105: 63.77329976
A106: 01-01-01-- SALARIO | B106: 10359806000 | C106: 6613385874 | D106: 6602839332 | E106: 6602839332 | F106: 3746420126 | G106: 63.83696639 | H106: 63.73516388 | I106: 63.73516388
A107: 01-01-02-- CONTRIBUCIONES INHERENTES A LA NÓMINA | B107: 3785163000 | C107: 2466401891 | D107: 2466401891 | E107: 2466401891 | F107: 1318761109 | G107: 65.15972736 | H107: 65.15972736 | I107: 65.15972736
A108: 01-01-03-- REMUNERACIONES NO CONSTITUTIVAS DE FACTOR SALARIAL | B108: 1342831000 | C108: 807839897 | D108: 807839897 | E108: 807839897 | F108: 534991103 | G108: 60.15946139 | H108: 60.15946139 | I108: 60.15946139
A109: Adquisición de Bienes y Servicios | B109: 8416484000 | C109: 7099119588 | D109: 4163955938 | E109: 4163955938 | F109: 1317364412 | G109: 84.3478059 | H109: 49.47381755 | I109: 49.47381755
A110: 02---- ADQUISICIÓN DE BIENES Y SERVICIOS | B110: 8416484000 | C110: 7099119588 | D110: 4163955938 | E110: 4163955938 | F110: 1317364412 | G110: 84.3478059 | H110: 49.47381755 | I110: 49.47381755
A111: Transferencias | B111: 214198000 | C111: 36730646 | D111: 36524145 | E111: 36524145 | F111: 177467354 | G111: 17.14798738 | H111: 17.05158078 | I111: 17.05158078
A112: 03-04-02-012- INCAPACIDADES Y LICENCIAS DE MATERNIDAD Y PATERNIDAD (NO DE PENSIONES) | B112: 64198000 | C112: 36730646 | D112: 36524145 | E112: 36524145 | F112: 27467354 | G112: 57.21462662 | H112: 56.89296396 | I112: 56.89296396
A113: 03-10--- SENTENCIAS Y CONCILIACIONES | B113: 150000000 | C113: 0 | D113: 0 | E113: 0 | F113: 150000000 | G113: 0 | H113: 0 | I113: 0
A114: Gastos por Tributos, Multas, Sanciones e Intereses de Mora | B114: 298518000 | C114: 213739181 | D114: 28323924 | E114: 28323924 | F114: 84778819 | G114: 71.60009815 | H114: 9.488179607 | I114: 9.488179607
A115: 08-01--- IMPUESTOS | B115: 61000000 | C115: 25129975 | D115: 25129975 | E115: 25129975 | F115: 35870025 | G115: 41.19668033 | H115: 41.19668033 | I115: 41.19668033
A116: 08-03--- TASAS Y DERECHOS ADMINISTRATIVOS | B116: 4518000 | C116: 3193949 | D116: 3193949 | E116: 3193949 | F116: 1324051 | G116: 70.69386897 | H116: 70.69386897 | I116: 70.69386897
A117: 08-04-01-- CUOTA DE FISCALIZACIÓN Y AUDITAJE | B117: 233000000 | C117: 185415257 | D117: 0 | E117: 0 | F117: 47584743 | G117: 79.57736352 | H117: 0 | I117: 0
A118: Inversión | B118: 73520013996 | C118: 3.641477424e+10 | D118: 1.583744676e+10 | E118: 1.579170676e+10 | F118: 3.710523976e+10 | G118: 49.53042343 | H118: 21.54168083 | I118: 21.47946648
A119: A-Inversión | B119: 73520013996 | C119: 3.641477424e+10 | D119: 1.583744676e+10 | E119: 1.579170676e+10 | F119: 3.710523976e+10 | G119: 49.53042343 | H119: 21.54168083 | I119: 21.47946648
A120: 1799-1100-3-53105B- 5. CONVERGENCIA REGIONAL / B. ENTIDADES PÚBLICAS TERRITORIALES Y NACIONALES FORTALECIDAS | B120: 4483717900 | C120: 3316288756 | D120: 2186284191 | E120: 2186284191 | F120: 1167429144 | G120: 73.96292162 | H120: 48.76052062 | I120: 48.76052062
A121: 1707-1100-6-30101B- 3. DERECHO HUMANO A LA ALIMENTACIÓN / B. PROVEER ACCESO A FACTORES PRODUCTIVOS EN FORMA OPORTUNA Y SIMULTÁNEA | B121: 3466308700 | C121: 2315657952 | D121: 1226012452 | E121: 1206262452 | F121: 1150650748 | G121: 66.80472377 | H121: 35.36939604 | I121: 34.79962567
A122: 1707-1100-7-30101B- 3. DERECHO HUMANO A LA ALIMENTACIÓN / B. PROVEER ACCESO A FACTORES PRODUCTIVOS EN FORMA OPORTUNA Y SIMULTÁNEA | B122: 54383838596 | C122: 2.35842825e+10 | D122: 9988346940 | E122: 9962356940 | F122: 3.079955609e+10 | G122: 43.36634396 | H122: 18.36638825 | I122: 18.31859831
A123: 1708-1100-7-30101B- 3. DERECHO HUMANO A LA ALIMENTACIÓN / B. PROVEER ACCESO A FACTORES PRODUCTIVOS EN FORMA OPORTUNA Y SIMULTÁNEA | B123: 4266341700 | C123: 731612937 | D123: 208708843 | E123: 208708843 | F123: 3534728763 | G123: 17.14848431 | H123: 4.891986101 | I123: 4.891986101
A124: 1708-1100-6-30206C- 3. DERECHO HUMANO A LA ALIMENTACIÓN / C. PRODUCCIÓN DE INFORMACIÓN PARA MEJORAR LA TOMA DE DECISIONES - [PREVIO CONCEPTO DNP] | B124: 6919807100 | C124: 6466932092 | D124: 2228094338 | E124: 2228094338 | F124: 452875008 | G124: 93.45538103 | H124: 32.19879262 | I124: 32.19879262
A125: 171600 UAE Gestión de Restitución de Tierras Despojadas | B125: 536029566664 | C125: 4.263247842e+11 | D125: 309126746848 | E125: 309126746848 | F125: 1.097047825e+11 | G125: 79.53381879 | H125: 57.66971937 | I125: 57.66971937
A126: Funcionamiento | B126: 80608731000 | C126: 6.014589739e+10 | D126: 52686772102 | E126: 52686772102 | F126: 2.046283361e+10 | G126: 74.61461884 | H126: 65.36112335 | I126: 65.36112335
A127: Gastos de Personal | B127: 57297360000 | C127: 41033981748 | D127: 41032700163 | E127: 41032700163 | F127: 16263378252 | G127: 71.61583317 | H127: 71.61359644 | I127: 71.61359644
A128: 01-01-01-- SALARIO | B128: 38347846000 | C128: 27442015674 | D128: 27440734089 | E128: 27440734089 | F128: 10905830326 | G128: 71.56077469 | H128: 71.55743269 | I128: 71.55743269
A129: 01-01-02-- CONTRIBUCIONES INHERENTES A LA NÓMINA | B129: 13860077000 | C129: 11420387274 | D129: 11420387274 | E129: 11420387274 | F129: 2439689726 | G129: 82.39771881 | H129: 82.39771881 | I129: 82.39771881
A130: 01-01-03-- REMUNERACIONES NO CONSTITUTIVAS DE FACTOR SALARIAL | B130: 5089437000 | C130: 2171578800 | D130: 2171578800 | E130: 2171578800 | F130: 2917858200 | G130: 42.66835015 | H130: 42.66835015 | I130: 42.66835015
A131: Adquisición de Bienes y Servicios | B131: 21891696000 | C131: 1.812993866e+10 | D131: 10672094960 | E131: 10672094960 | F131: 3761757337 | G131: 82.81651026 | H131: 48.74951196 | I131: 48.74951196
A132: 02---- ADQUISICIÓN DE BIENES Y SERVICIOS | B132: 21891696000 | C132: 1.812993866e+10 | D132: 10672094960 | E132: 10672094960 | F132: 3761757337 | G132: 82.81651026 | H132: 48.74951196 | I132: 48.74951196
A133: Transferencias | B133: 591000000 | C133: 163601979 | D133: 163601979 | E133: 163601979 | F133: 427398021 | G133: 27.68222995 | H133: 27.68222995 | I133: 27.68222995
A134: 03-04-02-012- INCAPACIDADES Y LICENCIAS DE MATERNIDAD Y PATERNIDAD (NO DE PENSIONES) | B134: 195000000 | C134: 163601979 | D134: 163601979 | E134: 163601979 | F134: 31398021 | G134: 83.89845077 | H134: 83.89845077 | I134: 83.89845077
A135: 03-10--- SENTENCIAS Y CONCILIACIONES | B135: 396000000 | C135: 0 | D135: 0 | E135: 0 | F135: 396000000 | G135: 0 | H135: 0 | I135: 0
A136: Gastos por Tributos, Multas, Sanciones e Intereses de Mora | B136: 828675000 | C136: 818375000 | D136: 818375000 | E136: 818375000 | F136: 10300000 | G136: 98.75705192 | H136: 98.75705192 | I136: 98.75705192
A137: 08-01--- IMPUESTOS | B137: 10300000 | C137: 0 | D137: 0 | E137: 0 | F137: 10300000 | G137: 0 | H137: 0 | I137: 0
A138: 08-04-01-- CUOTA DE FISCALIZACIÓN Y AUDITAJE | B138: 818375000 | C138: 818375000 | D138: 818375000 | E138: 818375000 | F138: 0 | G138: 100 | H138: 100 | I138: 100
A139: Inversión | B139: 455420835664 | C139: 3.661788868e+11 | D139: 256439974746 | E139: 256439974746 | F139: 8.924194885e+10 | G139: 80.404509 | H139: 56.30835365 | I139: 56.30835365
A140: A-Inversión | B140: 455420835664 | C140: 3.661788868e+11 | D140: 256439974746 | E140: 256439974746 | F140: 8.924194885e+10 | G140: 80.404509 | H140: 56.30835365 | I140: 56.30835365
A141: 1705-1100-6-10106B- 1. ORDENAMIENTO DEL TERRITORIO ALREDEDOR DEL AGUA Y JUSTICIA AMBIENTAL / B. COORDINACIÓN INSTITUCIONAL PARA OPTIMIZAR LA FORMALIZACIÓN | B141: 165972546289 | C141: 1.297869941e+11 | D141: 1.126231469e+11 | E141: 1.126231469e+11 | F141: 3.61855522e+10 | G141: 78.19786886 | H141: 67.85649157 | I141: 67.85649157
A142: 1705-1100-7-10106A- 1. ORDENAMIENTO DEL TERRITORIO ALREDEDOR DEL AGUA Y JUSTICIA AMBIENTAL / A. ACCESO Y FORMALIZACIÓN DE LA PROPIEDAD | B142: 548400710 | C142: 0 | D142: 0 | E142: 0 | F142: 548400710 | G142: 0 | H142: 0 | I142: 0
A143: 1705-1100-8-10106A- 1. ORDENAMIENTO DEL TERRITORIO ALREDEDOR DEL AGUA Y JUSTICIA AMBIENTAL / A. ACCESO Y FORMALIZACIÓN DE LA PROPIEDAD | B143: 130080667815 | C143: 8.510026765e+10 | D143: 4.131088222e+10 | E143: 4.131088222e+10 | F143: 4.498040017e+10 | G143: 65.42114911 | H143: 31.75789525 | I143: 31.75789525
A144: 1705-1100-9-10106A- 1. ORDENAMIENTO DEL TERRITORIO ALREDEDOR DEL AGUA Y JUSTICIA AMBIENTAL / A. ACCESO Y FORMALIZACIÓN DE LA PROPIEDAD | B144: 118036898130 | C144: 1.121052176e+11 | D144: 7.387834926e+10 | E144: 7.387834926e+10 | F144: 5931680524 | G144: 94.97472348 | H144: 62.58919917 | I144: 62.58919917
A145: 1799-1100-1-10106A- 1. ORDENAMIENTO DEL TERRITORIO ALREDEDOR DEL AGUA Y JUSTICIA AMBIENTAL / A. ACCESO Y FORMALIZACIÓN DE LA PROPIEDAD | B145: 40782322720 | C145: 3.918640747e+10 | D145: 2.862759638e+10 | E145: 2.862759638e+10 | F145: 1595915252 | G145: 96.08674753 | H145: 70.19609102 | I145: 70.19609102
A146: 171700 Agencia Nacional de Tierras - ANT | B146: 1718183524174 | C146: 1.237077705e+12 | D146: 5.385510203e+11 | E146: 5.385510203e+11 | F146: 4.811058191e+11 | G146: 71.99916002 | H146: 31.34420815 | I146: 31.34420815
A147: Funcionamiento | B147: 82539448000 | C147: 6.060084167e+10 | D147: 4.855886918e+10 | E147: 4.855886918e+10 | F147: 2.193860633e+10 | G147: 73.42045912 | H147: 58.83110483 | I147: 58.83110483
A148: Gastos de Personal | B148: 36986271000 | C148: 24349204581 | D148: 24308525863 | E148: 24308525863 | F148: 12637066419 | G148: 65.83308866 | H148: 65.72310537 | I148: 65.72310537
A149: 01-01-01-- SALARIO | B149: 24671812000 | C149: 16051972111 | D149: 16024787666 | E149: 16024787666 | F149: 8619839889 | G149: 65.06199103 | H149: 64.95180681 | I149: 64.95180681
A150: 01-01-02-- CONTRIBUCIONES INHERENTES A LA NÓMINA | B150: 9015066000 | C150: 6267611332 | D150: 6267611332 | E150: 6267611332 | F150: 2747454668 | G150: 69.52374317 | H150: 69.52374317 | I150: 69.52374317
A151: 01-01-03-- REMUNERACIONES NO CONSTITUTIVAS DE FACTOR SALARIAL | B151: 3299393000 | C151: 2029621138 | D151: 2016126865 | E151: 2016126865 | F151: 1269771862 | G151: 61.51498588 | H151: 61.10599328 | I151: 61.10599328
A152: Adquisición de Bienes y Servicios | B152: 38452161000 | C152: 3.332114327e+10 | D152: 2.137449718e+10 | E152: 2.137449718e+10 | F152: 5131017735 | G152: 86.65610046 | H152: 55.58724562 | I152: 55.58724562
A153: 02---- ADQUISICIÓN DE BIENES Y SERVICIOS | B153: 38452161000 | C153: 3.332114327e+10 | D153: 2.137449718e+10 | E153: 2.137449718e+10 | F153: 5131017735 | G153: 86.65610046 | H153: 55.58724562 | I153: 55.58724562
A154: Transferencias | B154: 4215672000 | C154: 45594963 | D154: 34947267 | E154: 34947267 | F154: 4170077037 | G154: 1.081558598 | H154: 0.8289844893 | I154: 0.8289844893
A155: 03-04-02-012- INCAPACIDADES Y LICENCIAS DE MATERNIDAD Y PATERNIDAD (NO DE PENSIONES) | B155: 143556000 | C155: 45594963 | D155: 34947267 | E155: 34947267 | F155: 97961037 | G155: 31.7610988 | H155: 24.34399607 | I155: 24.34399607
A156: 03-10--- SENTENCIAS Y CONCILIACIONES | B156: 4072116000 | C156: 0 | D156: 0 | E156: 0 | F156: 4072116000 | G156: 0 | H156: 0 | I156: 0
A157: Gastos por Tributos, Multas, Sanciones e Intereses de Mora | B157: 2885344000 | C157: 2884898864 | D157: 2840898864 | E157: 2840898864 | F157: 445136 | G157: 99.98457252 | H157: 98.45962436 | I157: 98.45962436
A158: 08-01--- IMPUESTOS | B158: 200344000 | C158: 199898864 | D158: 199898864 | E158: 199898864 | F158: 445136 | G158: 99.77781416 | H158: 99.77781416 | I158: 99.77781416
A159: 08-04-01-- CUOTA DE FISCALIZACIÓN Y AUDITAJE | B159: 2641000000 | C159: 2641000000 | D159: 2641000000 | E159: 2641000000 | F159: 0 | G159: 100 | H159: 100 | I159: 100
A160: 08-05--- MULTAS, SANCIONES E INTERESES DE MORA | B160: 44000000 | C160: 44000000 | D160: 0 | E160: 0 | F160: 0 | G160: 100 | H160: 0 | I160: 0
A161: Inversión | B161: 1635644076174 | C161: 1.176476863e+12 | D161: 4.899921511e+11 | E161: 4.899921511e+11 | F161: 4.591672128e+11 | G161: 71.92743706 | H161: 29.95713788 | I161: 29.95713788
A162: A-Inversión | B162: 1635644076174 | C162: 1.176476863e+12 | D162: 4.899921511e+11 | E162: 4.899921511e+11 | F162: 4.591672128e+11 | G162: 71.92743706 | H162: 29.95713788 | I162: 29.95713788
A163: 1799-1100-9-53105B- 5. CONVERGENCIA REGIONAL / B. ENTIDADES PÚBLICAS TERRITORIALES Y NACIONALES FORTALECIDAS | B163: 13297004342 | C163: 12598284882 | D163: 2212971260 | E163: 2212971260 | F163: 698719460 | G163: 94.74528667 | H163: 16.6426302 | I163: 16.6426302
A164: 1704-1100-19-10106A- 1. ORDENAMIENTO DEL TERRITORIO ALREDEDOR DEL AGUA Y JUSTICIA AMBIENTAL / A. ACCESO Y FORMALIZACIÓN DE LA PROPIEDAD | B164: 234474550204 | C164: 1.419180384e+11 | D164: 5.415376196e+10 | E164: 5.415376196e+10 | F164: 9.255651183e+10 | G164: 60.52598811 | H164: 23.09579522 | I164: 23.09579522
A165: 1704-1100-20-10106A- 1. ORDENAMIENTO DEL TERRITORIO ALREDEDOR DEL AGUA Y JUSTICIA AMBIENTAL / A. ACCESO Y FORMALIZACIÓN DE LA PROPIEDAD | B165: 234474550204 | C165: 7.049017154e+10 | D165: 2.868323915e+10 | E165: 2.868323915e+10 | F165: 1.639843787e+11 | G165: 30.06303732 | H165: 12.23298611 | I165: 12.23298611
A166: 1704-1100-21-10106A- 1. ORDENAMIENTO DEL TERRITORIO ALREDEDOR DEL AGUA Y JUSTICIA AMBIENTAL / A. ACCESO Y FORMALIZACIÓN DE LA PROPIEDAD | B166: 21474642609 | C166: 19591397533 | D166: 8851286159 | E166: 8851286159 | F166: 1883245076 | G166: 91.23037757 | H166: 41.21738517 | I166: 41.21738517
A167: 1704-1100-21-53105B- 5. CONVERGENCIA REGIONAL / B. ENTIDADES PÚBLICAS TERRITORIALES Y NACIONALES FORTALECIDAS | B167: 22880803075 | C167: 17393055154 | D167: 8141666627 | E167: 8141666627 | F167: 5487747921 | G167: 76.01592959 | H167: 35.58295834 | I167: 35.58295834
A168: 1704-1100-22-10106A- 1. ORDENAMIENTO DEL TERRITORIO ALREDEDOR DEL AGUA Y JUSTICIA AMBIENTAL / A. ACCESO Y FORMALIZACIÓN DE LA PROPIEDAD | B168: 80504875079 | C168: 66411264522 | D168: 4.196717943e+10 | E168: 4.196717943e+10 | F168: 14093610557 | G168: 82.49346944 | H168: 52.12998515 | I168: 52.12998515
A169: 1704-1100-23-10106A- 1. ORDENAMIENTO DEL TERRITORIO ALREDEDOR DEL AGUA Y JUSTICIA AMBIENTAL / A. ACCESO Y FORMALIZACIÓN DE LA PROPIEDAD | B169: 89207995636 | C169: 7.911300771e+10 | D169: 4.509070732e+10 | E169: 4.509070732e+10 | F169: 1.009498793e+10 | G169: 88.68376332 | H169: 50.54558955 | I169: 50.54558955
A170: 1704-1100-25-10106A- 1. ORDENAMIENTO DEL TERRITORIO ALREDEDOR DEL AGUA Y JUSTICIA AMBIENTAL / A. ACCESO Y FORMALIZACIÓN DE LA PROPIEDAD | B170: 844912995955 | C170: 6.982028989e+11 | D170: 2.624652801e+11 | E170: 2.624652801e+11 | F170: 1.46710097e+11 | G170: 82.63607049 | H170: 31.06417836 | I170: 31.06417836
A171: 1799-1100-10-53105B- 5. CONVERGENCIA REGIONAL / B. ENTIDADES PÚBLICAS TERRITORIALES Y NACIONALES FORTALECIDAS | B171: 29416659070 | C171: 2.622262127e+10 | D171: 1.638820921e+10 | E171: 1.638820921e+10 | F171: 3194037804 | G171: 89.14207832 | H171: 55.71064058 | I171: 55.71064058
A172: 1704-1100-19-10106AZ- 1. ORDENAMIENTO DEL TERRITORIO ALREDEDOR DEL AGUA Y JUSTICIA AMBIENTAL / A. ACCESO Y FORMALIZACIÓN DE LA PROPIEDAD / Z. ECI CATATUMBO | B172: 15000000000 | C172: 4426337922 | D172: 683650135 | E172: 683650135 | F172: 10573662078 | G172: 29.50891948 | H172: 4.557667567 | I172: 4.557667567
A173: 1704-1100-23-10106AZ- 1. ORDENAMIENTO DEL TERRITORIO ALREDEDOR DEL AGUA Y JUSTICIA AMBIENTAL / A. ACCESO Y FORMALIZACIÓN DE LA PROPIEDAD / Z. ECI CATATUMBO | B173: 15000000000 | C173: 11543293921 | D173: 3780607228 | E173: 3780607228 | F173: 3456706079 | G173: 76.95529281 | H173: 25.20404819 | I173: 25.20404819
A174: 1704-1100-25-10106AZ- 1. ORDENAMIENTO DEL TERRITORIO ALREDEDOR DEL AGUA Y JUSTICIA AMBIENTAL / A. ACCESO Y FORMALIZACIÓN DE LA PROPIEDAD / Z. ECI CATATUMBO | B174: 35000000000 | C174: 28566491631 | D174: 17573592527 | E174: 17573592527 | F174: 6433508369 | G174: 81.61854752 | H174: 50.21026436 | I174: 50.21026436
A175: 171800 Agencia de Desarrollo Rural - ADR | B175: 761700198345 | C175: 5.4913511e+11 | D175: 3.004104512e+11 | E175: 3.000312115e+11 | F175: 2.125650883e+11 | G175: 72.09333951 | H175: 39.43946081 | I175: 39.38967223
A176: Funcionamiento | B176: 57526196000 | C176: 3.625845417e+10 | D176: 2.992119401e+10 | E176: 2.983024942e+10 | F176: 2.126774183e+10 | G176: 63.02946603 | H176: 52.01316285 | I176: 51.85507038
A177: Gastos de Personal | B177: 21987041000 | C177: 12366006122 | D177: 12366006122 | E177: 12366006122 | F177: 9621034878 | G177: 56.24224798 | H177: 56.24224798 | I177: 56.24224798
A178: 01-01-01-- SALARIO | B178: 15110970000 | C178: 7885591896 | D178: 7885591896 | E178: 7885591896 | F178: 7225378104 | G178: 52.18455133 | H178: 52.18455133 | I178: 52.18455133
A179: 01-01-02-- CONTRIBUCIONES INHERENTES A LA NÓMINA | B179: 4511938655 | C179: 2955181975 | D179: 2955181975 | E179: 2955181975 | F179: 1556756680 | G179: 65.4969449 | H179: 65.4969449 | I179: 65.4969449
A180: 01-01-03-- REMUNERACIONES NO CONSTITUTIVAS DE FACTOR SALARIAL | B180: 2364132345 | C180: 1525232251 | D180: 1525232251 | E180: 1525232251 | F180: 838900094 | G180: 64.51551895 | H180: 64.51551895 | I180: 64.51551895
A181: Adquisición de Bienes y Servicios | B181: 29292596000 | C181: 2.256385086e+10 | D181: 1.622659071e+10 | E181: 1.613564612e+10 | F181: 6728745136 | G181: 77.0291949 | H181: 55.39485373 | I181: 55.08438419
A182: 02---- ADQUISICIÓN DE BIENES Y SERVICIOS | B182: 29292596000 | C182: 2.256385086e+10 | D182: 1.622659071e+10 | E182: 1.613564612e+10 | F182: 6728745136 | G182: 77.0291949 | H182: 55.39485373 | I182: 55.08438419
A183: Transferencias | B183: 3996559000 | C183: 70610846 | D183: 70610846 | E183: 70610846 | F183: 3925948154 | G183: 1.766791032 | H183: 1.766791032 | I183: 1.766791032
A184: 03-03-01-999- OTRAS TRANSFERENCIAS - DISTRIBUCIÓN PREVIO CONCEPTO DGPPN | B184: 261798000 | C184: 0 | D184: 0 | E184: 0 | F184: 261798000 | G184: 0 | H184: 0 | I184: 0
A185: 03-04-02-012- INCAPACIDADES Y LICENCIAS DE MATERNIDAD Y PATERNIDAD (NO DE PENSIONES) | B185: 145545000 | C185: 31037513 | D185: 31037513 | E185: 31037513 | F185: 114507487 | G185: 21.32502869 | H185: 21.32502869 | I185: 21.32502869
A186: 03-10--- SENTENCIAS Y CONCILIACIONES | B186: 3589216000 | C186: 39573333 | D186: 39573333 | E186: 39573333 | F186: 3549642667 | G186: 1.102562036 | H186: 1.102562036 | I186: 1.102562036
A187: Gastos por Tributos, Multas, Sanciones e Intereses de Mora | B187: 2250000000 | C187: 1257986334 | D187: 1257986334 | E187: 1257986334 | F187: 992013666 | G187: 55.91050373 | H187: 55.91050373 | I187: 55.91050373
A188: 08-01--- IMPUESTOS | B188: 250000000 | C188: 190198536 | D188: 190198536 | E188: 190198536 | F188: 59801464 | G188: 76.0794144 | H188: 76.0794144 | I188: 76.0794144
A189: 08-04-01-- CUOTA DE FISCALIZACIÓN Y AUDITAJE | B189: 2000000000 | C189: 1067787798 | D189: 1067787798 | E189: 1067787798 | F189: 932212202 | G189: 53.3893899 | H189: 53.3893899 | I189: 53.3893899
A190: Inversión | B190: 704174002345 | C190: 5.128766559e+11 | D190: 2.704892572e+11 | E190: 2.702009621e+11 | F190: 1.912973465e+11 | G190: 72.83379593 | H190: 38.41227542 | I190: 38.37133453
A191: A-Inversión | B191: 704174002345 | C191: 5.128766559e+11 | D191: 2.704892572e+11 | E191: 2.702009621e+11 | F191: 1.912973465e+11 | G191: 72.83379593 | H191: 38.41227542 | I191: 38.37133453
A192: 1709-1100-6-30101B- 3. DERECHO HUMANO A LA ALIMENTACIÓN / B. PROVEER ACCESO A FACTORES PRODUCTIVOS EN FORMA OPORTUNA Y SIMULTÁNEA | B192: 36908650863 | C192: 1.9569254e+10 | D192: 8721889776 | E192: 8586412849 | F192: 1.733939686e+10 | G192: 53.02077845 | H192: 23.63101759 | I192: 23.2639575
A193: 1702-1100-14-30101B- 3. DERECHO HUMANO A LA ALIMENTACIÓN / B. PROVEER ACCESO A FACTORES PRODUCTIVOS EN FORMA OPORTUNA Y SIMULTÁNEA | B193: 347401848886 | C193: 2.865572393e+11 | D193: 1.466450574e+11 | E193: 1.465652288e+11 | F193: 6.084460955e+10 | G193: 82.48581297 | H193: 42.21193924 | I193: 42.18896051
A194: 1708-1100-5-30101C- 3. DERECHO HUMANO A LA ALIMENTACIÓN / C. SISTEMAS TERRITORIALES DE INNOVACIÓN, FORTALECIMIENTO DEL SISTEMA NACIONAL DE INNOVACIÓN AGROPECUARIA (SNIA) Y MISIÓN DE INVESTIGACIÓN E INNOVACIÓN | B194: 44396720780 | C194: 2.826458816e+10 | D194: 1.877167413e+10 | E194: 1.875150732e+10 | F194: 1.613213262e+10 | G194: 63.66368431 | H194: 42.28166811 | I194: 42.23624401
A195: 1708-1100-5-30101D- 3. DERECHO HUMANO A LA ALIMENTACIÓN / D. EXTENSIÓN TECNOLÓGICA AGROINDUSTRIA | B195: 34745794650 | C195: 0 | D195: 0 | E195: 0 | F195: 34745794650 | G195: 0 | H195: 0 | I195: 0
A196: 1709-1100-7-30101B- 3. DERECHO HUMANO A LA ALIMENTACIÓN / B. PROVEER ACCESO A FACTORES PRODUCTIVOS EN FORMA OPORTUNA Y SIMULTÁNEA | B196: 116422783387 | C196: 1.138696204e+11 | D196: 5.951404111e+10 | E196: 5.950217995e+10 | F196: 2553162990 | G196: 97.80699025 | H196: 51.11889561 | I196: 51.1087076
A197: 1799-1100-14-53105B- 5. CONVERGENCIA REGIONAL / B. ENTIDADES PÚBLICAS TERRITORIALES Y NACIONALES FORTALECIDAS | B197: 162970947 | C197: 162970947 | D197: 162970946.1 | E197: 162970946.1 | F197: 0 | G197: 100 | H197: 99.99999947 | I197: 99.99999947
A198: 1799-1100-15-53105B- 5. CONVERGENCIA REGIONAL / B. ENTIDADES PÚBLICAS TERRITORIALES Y NACIONALES FORTALECIDAS | B198: 6658969478 | C198: 4624354208 | D198: 2941743574 | E198: 2941743574 | F198: 2034615270 | G198: 69.44549339 | H198: 44.1771596 | I198: 44.1771596
A199: 1799-1100-16-53105B- 5. CONVERGENCIA REGIONAL / B. ENTIDADES PÚBLICAS TERRITORIALES Y NACIONALES FORTALECIDAS | B199: 10237078950 | C199: 4033260335 | D199: 3356656674 | E199: 3356656674 | F199: 6203818615 | G199: 39.39854674 | H199: 32.78920374 | I199: 32.78920374
A200: 1702-1100-16-30101B- 3. DERECHO HUMANO A LA ALIMENTACIÓN / B. PROVEER ACCESO A FACTORES PRODUCTIVOS EN FORMA OPORTUNA Y SIMULTÁNEA | B200: 15339184404 | C200: 1.190398545e+10 | D200: 6734753060 | E200: 6728841388 | F200: 3435198952 | G200: 77.60507429 | H200: 43.90554858 | I200: 43.8670089
... 4848 more rows

Sheet CUA8
A1: CUADRO No. 8
A2: Rezago presupuestal del Presupuesto General de la Nación en 2024
A3: =+'CUA1'!A3:L3 -> Acumulada a Septiembre 2025
A4: Miles de millones de pesos corrientes
B5: Concepto | C5: Rezago | D5: Pago | E5: Rezago por pagar | F5: Ejecución %
F6: Pago/Rezago
C7: (1) | D7: (2) | E7: (3)=(1-2) | F7: (4)=(2/1)
A8: I. | B8: FUNCIONAMIENTO | C8: 18453.98373 | D8: 13894.65646 | E8: 4559.327266 | F8: 75.29353373
B9: Gastos de Personal | C9: 538.6439962 | D9: 521.1906957 | E9: 17.45330046 | F9: 96.75977072
B10: Adquisición de Bienes y Servicios | C10: 4296.091816 | D10: 3969.820823 | E10: 326.2709924 | F10: 92.40539992
B11: Transferencias | C11: 13276.82605 | D11: 9100.554438 | E11: 4176.271611 | F11: 68.5446537
B12: Gastos de Comercialización y Producción | C12: 319.1966163 | D12: 280.3194066 | E12: 38.87720979 | F12: 87.82029389
B13: Adquisición de Activos Financieros | C13: 4.912678001 | D13: 4.867678001 | E13: 0.045 | F13: 99.08400266
B14: Disminución de Pasivos | C14: 10.9230187 | D14: 10.52822507 | E14: 0.394793634 | F14: 96.38567282
B15: Gastos por Tributos, Multas, Sanciones e Intereses de Mora | C15: 7.389554835 | D15: 7.375196002 | E15: 0.014358833 | F15: 99.80568744
A16: II. | B16: SERVICIO DE LA DEUDA | C16: 7470.89234 | D16: 7436.323228 | E16: 34.56911191 | F16: 99.53728269
B17: Servicio de la Deuda Pública Externa | C17: 3725.68996 | D17: 3724.431107 | E17: 1.25885224 | F17: 99.96621157
B18: Principal | C18: 1597.329762 | D18: 1597.329762 | E18: 0 | F18: 100
B19: Intereses | C19: 2124.250116 | D19: 2124.250116 | E19: 0 | F19: 100
B20: Comisiones y Otros Gastos | C20: 4.110081318 | D20: 2.851229077 | E20: 1.25885224 | F20: 69.37159771
B21: Servicio de la Deuda Pública Interna | C21: 3745.202381 | D21: 3711.892121 | E21: 33.31025967 | F21: 99.11058853
B22: Principal | C22: 3460.391126 | D22: 3460.391126 | E22: 0 | F22: 100
B23: Intereses | C23: 221.4578363 | D23: 221.4578363 | E23: 0 | F23: 100
B24: Comisiones y Otros Gastos | C24: 63.35341876 | D24: 30.04315909 | E24: 33.31025967 | F24: 47.4215278
B25: Fondo de Contingencias | C25: 0 | D25: 0 | E25: 0 | F25: 0
A26: III. | B26: INVERSIÓN | C26: 36645.07345 | D26: 27755.41054 | E26: 8889.662914 | F26: 75.74117862
A27: IV. | B27: TOTAL (I + II + III) | C27: 62569.94952 | D27: 49086.39023 | E27: 13483.55929 | F27: 78.45042325
A28: V. | B28: TOTAL SIN DEUDA (I + III) | C28: 55099.05718 | D28: 41650.067 | E28: 13448.99018 | F28: 75.59125171
A29: Fuente: Dirección General del Presupuesto Público Nacional- Subdirección de Análisis y Consolidación Presupuestal

Sheet CUA9
A1: Cuadro No. 9
A2: Reservas presupuestales del PGN de 2024 que se ejecutan en el 2025
A3: =+'CUA1'!A3:L3 -> Acumulada a Septiembre 2025
B5: Concepto | C5: Reservas Presupuestales | D5: Pago | E5: Reservas por pagar | F5: Ejecución %
C6: presupuestal | F6: Pago/Reservas
C7: (1) | D7: (2) | E7: (3)=(1-2) | F7: (4)=(2/1)
A8: I. | B8: FUNCIONAMIENTO | C8: 17932.01448 | D8: 13374.04238 | E8: 4557.972094 | F8: 74.58192943 | H8: FUNCIONAMIENTO | I8: 17983.38556 | J8: 7641.612973 | K8: =+I8-C8 -> 51.37108272 | L8: =+J8-D8 -> -5732.42941
B9: Gastos de Personal | C9: 439.2692921 | D9: 421.8179119 | E9: 17.45138018 | F9: 96.02717957 | H9: Gastos de Personal | I9: 472.1833077 | J9: 411.8682172 | K9: =+I9-C9 -> 32.91401561 | L9: -9.94969469
B10: Adquisición de Bienes y Servicios | C10: 4106.560814 | D10: 3780.420641 | E10: 326.1401727 | F10: 92.0580703 | H10: Adquisición de Bienes y Servicios | I10: 4195.062752 | J10: 1994.877709 | K10: 88.50193862 | L10: -1785.542932
B11: Transferencias | C11: 13232.3812 | D11: 9057.331853 | E11: 4175.049349 | F11: 68.44823857 | H11: Transferencias | I11: 13160.48377 | J11: 5194.59197 | K11: -71.89742838 | L11: -3862.739883
B12: Gastos de Comercialización y Producción | C12: 135.6902129 | D12: 96.81300309 | E12: 38.87720979 | F12: 71.34855273 | H12: Gastos de Comercialización y Producción | I12: 137.2457628 | J12: 25.8311096 | K12: 1.555549964 | L12: -70.98189348
B13: Adquisición de Activos Financieros | C13: 4.548223633 | D13: 4.503223633 | E13: 0.045 | F13: 99.01060274 | H13: Adquisición de Activos Financieros | I13: 4.658803368 | J13: 1.947258222 | K13: 0.1105797343 | L13: -2.555965411
B14: Disminución de Pasivos | C14: 10.56611633 | D14: 10.17132269 | E14: 0.394793634 | F14: 96.26358804 | H14: Disminución de Pasivos | I14: 10.58143075 | J14: 9.907085626 | K14: 0.015314418 | L14: -0.264237067
B15: Gastos por Tributos, Multas, Sanciones e Intereses de Mora | C15: 2.998617019 | D15: 2.984428499 | E15: 0.01418852 | F15: 99.52683121 | H15: Gastos por Tributos, Multas, Sanciones e Intereses de Mora | I15: 3.169729768 | J15: 2.589623018 | K15: 0.1711127498 | L15: -0.394805481
A16: II. | B16: SERVICIO DE LA DEUDA | C16: 7470.89234 | D16: 7436.323228 | E16: 34.56911191 | F16: 99.53728269 | H16: SERVICIO DE LA DEUDA | I16: 7773.360726 | J16: 3030.781278 | K16: 302.4683859 | L16: -4405.54195
B17: Servicio de la Deuda Pública Externa | C17: 3725.68996 | D17: 3724.431107 | E17: 1.25885224 | F17: 99.96621157 | H17: Servicio de la Deuda Pública Externa | I17: 4028.158345 | J17: 3007.499599 | K17: 302.4683859 | L17: -716.9315084
B18: Principal | C18: 1597.329762 | D18: 1597.329762 | E18: 0 | F18: 100 | H18: Principal | I18: 1770.995202 | J18: 1013.069517 | K18: 173.6654403 | L18: -584.2602448
B19: Intereses | C19: 2124.250116 | D19: 2124.250116 | E19: 0 | F19: 100 | H19: Intereses | I19: 2245.312495 | J19: 1992.455366 | K19: 121.0623786 | L19: -131.7947502
B20: Comisiones y Otros Gastos | C20: 4.110081318 | D20: 2.851229077 | E20: 1.25885224 | F20: 69.37159771 | H20: Comisiones y Otros Gastos | I20: 11.85064825 | J20: 1.974715705 | K20: 7.740566929 | L20: -0.8765133723
B21: Servicio de la Deuda Pública Interna | C21: 3745.202381 | D21: 3711.892121 | E21: 33.31025967 | F21: 99.11058853 | H21: Servicio de la Deuda Pública Interna | I21: 3745.202381 | J21: 23.28167934 | K21: 0 | L21: -3688.610442
B22: Principal | C22: 3460.391126 | D22: 3460.391126 | E22: 0 | F22: 100 | H22: Principal | I22: 3460.391126 | J22: 1.912810341 | K22: 0 | L22: -3458.478315
B23: Intereses | C23: 221.4578363 | D23: 221.4578363 | E23: 0 | F23: 100 | H23: Intereses | I23: 221.4578363 | J23: 0.01063211703 | K23: 0 | L23: -221.4472042
B24: Comisiones y Otros Gastos | C24: 63.35341876 | D24: 30.04315909 | E24: 33.31025967 | F24: 47.4215278 | H24: Comisiones y Otros Gastos | I24: 63.35341876 | J24: 21.35823688 | K24: 0 | L24: -8.684922212
B25: Fondo de Contingencias | C25: 0 | D25: 0 | E25: 0 | F25: 0 | H25: Fondo de contingencias | I25: 0 | J25: 0 | K25: 0 | L25: 0
A26: III. | B26: INVERSIÓN | C26: 35472.81022 | D26: 26586.06066 | E26: 8886.749563 | F26: 74.94771486 | H26: INVERSIÓN | I26: 35807.45166 | J26: 11011.49149 | K26: 334.6414331 | L26: -15574.56916
A27: IV. | B27: TOTAL (I + II + III) | C27: 60875.71704 | D27: 47396.42627 | E27: 13479.29077 | F27: 77.85768871 | H27: TOTAL (I + II + III) | I27: 61564.19794 | J27: 21683.88575 | K27: 688.4809017 | L27: -25712.54053
A28: V. | B28: TOTAL SIN DEUDA (I + III) | C28: 53404.8247 | D28: 39960.10304 | E28: 13444.72166 | F28: 74.8248932 | H28: TOTAL SIN DEUDA (I + III) | I28: 53790.83722 | J28: 18653.10447 | K28: 386.0125158 | L28: -21306.99857
A29: Fuente: Dirección General del Presupuesto Público Nacional- Subdirección de Análisis y Consolidación Presupuestal

Sheet CUA10
A1: Cuadro No. 10
A2: Cuentas por pagar del PGN de 2024 que se ejecutan en el 2025
A3: =+'CUA1'!A3:L3 -> Acumulada a Septiembre 2025
A4: Miles de millones de pesos corrientes
B5: Concepto | C5: Cuentas por Pagar | D5: Pago | E5: Cuentas sin pagar | F5: Ejecución %
F6: Pago/Cuentas
C7: (1) | D7: (2) | E7: (3)=(1-2) | F7: (4)=(2/1)
A8: I. | B8: FUNCIONAMIENTO | C8: 521.9692507 | D8: 520.6140785 | E8: 1.355172158 | F8: 99.74037318 | H8: 408.4120593 | I8: 406.2075617 | J8: =+H8-C8 -> -113.5571914 | K8: =+I8-D8 -> -114.4065169
B9: Gastos de Personal | C9: 99.37470406 | D9: 99.37278378 | E9: 0.001920279 | F9: 99.99806764 | H9: 33.03304575 | I9: 33.01139416 | J9: =+H9-C9 -> -66.34165831 | K9: -66.36138962
B10: Adquisición de Bienes y Servicios | C10: 189.5310019 | D10: 189.4001823 | E10: 0.1308196368 | F10: 99.93097718 | H10: 198.9744317 | I10: 198.9727557 | J10: 9.443429831 | K10: 9.572573401
B11: Transferencias | C11: 44.4448467 | D11: 43.22258477 | E11: 1.22226193 | F11: 97.24993555 | H11: 62.47458135 | I11: 60.39344836 | J11: 18.02973465 | K11: 17.17086359
B12: Gastos de Comercialización y Producción | C12: 183.5064035 | D12: 183.5064035 | E12: 0 | F12: 100 | H12: 107.6569445 | I12: 107.6569445 | J12: -75.84945896 | K12: -75.84945896
B13: Adquisición de Activos Financieros | C13: 0.3644543681 | D13: 0.3644543681 | E13: 0 | F13: 100 | H13: 4.3205215 | I13: 4.2205215 | J13: 3.956067132 | K13: 3.856067132
B14: Disminución de Pasivos | C14: 0.3569023729 | D14: 0.3569023729 | E14: 0 | F14: 100 | H14: 1.60507165 | I14: 1.60503464 | J14: 1.248169277 | K14: 1.248132267
B15: Gastos por Tributos, Multas, Sanciones e Intereses de Mora | C15: 4.390937816 | D15: 4.390767503 | E15: 0.000170313 | F15: 99.99612126 | H15: 0.34746281 | I15: 0.34746281 | J15: -4.043475006 | K15: -4.043304693
A16: II. | B16: SERVICIO DE LA DEUDA | C16: 0 | D16: 0 | E16: 0 | F16: 0 | H16: 6.736498228 | I16: 6.736498228 | J16: 6.736498228 | K16: 6.736498228
B17: Servicio de la Deuda Pública Externa | C17: 0 | D17: 0 | E17: 0 | F17: 0 | H17: 0 | I17: 0 | J17: 0 | K17: 0
B18: Principal | C18: 0 | D18: 0 | E18: 0 | F18: 0 | H18: 0 | I18: 0 | J18: 0 | K18: 0
B19: Intereses | C19: 0 | D19: 0 | E19: 0 | F19: 0 | H19: 0 | I19: 0 | J19: 0 | K19: 0
B20: Comisiones y Otros Gastos | C20: 0 | D20: 0 | E20: 0 | F20: 0 | H20: 0 | I20: 0 | J20: 0 | K20: 0
B21: Servicio de la Deuda Pública Interna | C21: 0 | D21: 0 | E21: 0 | F21: 0 | H21: 6.736498228 | I21: 6.736498228 | J21: 6.736498228 | K21: 6.736498228
B22: Principal | C22: 0 | D22: 0 | E22: 0 | F22: 0 | H22: 0 | I22: 0 | J22: 0 | K22: 0
B23: Intereses | C23: 0 | D23: 0 | E23: 0 | F23: 0 | H23: 0 | I23: 0 | J23: 0 | K23: 0
B24: Comisiones y Otros Gastos | C24: 0 | D24: 0 | E24: 0 | F24: 0 | H24: 0 | I24: 0 | J24: 0 | K24: 0
B25: Fondo de Contingencias | C25: 0 | D25: 0 | E25: 0 | F25: 0 | H25: 6.736498228 | I25: 6.736498228 | J25: 6.736498228 | K25: 6.736498228
A26: III. | B26: INVERSIÓN | C26: 1172.263233 | D26: 1169.349881 | E26: 2.913351859 | F26: 99.75147631 | H26: 621.5026668 | I26: 621.4521532 | J26: -550.7605659 | K26: -547.8977276
A27: IV. | B27: TOTAL (I + II + III) | C27: 1694.232483 | D27: 1689.963959 | E27: 4.268524017 | F27: 99.74805559 | H27: 1036.651224 | I27: 1034.396213 | J27: -657.5812591 | K27: -655.5677463
A28: V. | B28: TOTAL SIN DEUDA (I + III) | C28: 1694.232483 | D28: 1689.963959 | E28: 4.268524017 | F28: 99.74805559 | H28: 1029.914726 | I28: 1027.659715 | J28: -664.3177573 | K28: -662.3042445
A29: Fuente: Dirección General del Presupuesto Público Nacional- Subdirección de Análisis y Consolidación Presupuestal
